Workbook

Sheet history
B1: WHS TIMELINE as told in "JANUS" - ALL YEARS
G2: WHEN/FROM | J2: TO | M2: AT WHS
B3: AREA | C3: EVENT | D3: ACHIEV EMENT | E3: LINK | F3: IN JANUS | G3: DAY | H3: MON | I3: YR | J3: DAY | K3: MON | L3: YR | M3: FROM | N3: TO | O3: ACYR | P3: HOW LONG | Q3: TITLE | R3: FIRSTNAME | S3: LASTNAME | T3: RE HOUSE | U3: KNOWN AS | V3: STATUS | W3: WHAT | X3: POSITION | Y3: REPLACED | Z3: REPLACED BY | AA3: SUBJECT(S) | AB3: INTERESTS | AC3: ACTIVITIES | AD3: BEFORE WHS | AE3: AFTER WHS | AF3: COMMENTS | AG3: IMAGE
A4: 1 | B4: M&D | C4: Bach's "Christmas Oratorio" was performed | E4: GO | F4: 1967 | G4: 16 | H4: 12 | I4: 1967 | O4: 6768
A5: 2 | B5: M&D | C5: "SWANSONG": a recital by the 3rd YR Vth | E5: GO | F5: 1967 | G5: 9 | H5: 12 | I5: 1967 | O5: 6768
A6: 3 | B6: M&D | C6: "The Strong Are Lonely" performed on 9/10/11 December. | E6: GO | F6: 1966 | G6: 9 | H6: 12 | I6: 1966 | O6: 6667
A7: 4 | B7: staffing | C7: Mr McNichol arrived to teach Biology for 1 term. | E7: GO | F7: 1966 | H7: 9 | I7: 1966 | O7: 6667 | Q7: Mr | R7: UNKNOWN | S7: McNichol | V7: T | W7: started | X7: teacher | AA7: Biology | AD7: University of Adelaide
A8: 5 | B8: staffing | C8: Mr Chilton left after replacing Commander Wiseman for 6 months - Mrs Mayes replaced him as Tuckshop Manageress | E8: GO | F8: 1966 | H8: 8 | I8: 1966 | O8: 6566 | Q8: Mr | R8: J. L. | S8: Chilton | V8: DS | W8: left WHS | X8: Bursar | Z8: Mrs Mayes | AE8: Bursar at Sentral Elec. Board at Horsley Towers in Surrey
A9: 6 | B9: wedding | C9: Angela Bailey married Ian Beardwell in Woolverstone | E9: GO | F9: 1967 | G9: 22 | H9: 7 | I9: 1967 | O9: 6667
A10: 7 | B10: M&D | C10: "It Should Happen To A Dog" and "Dwarfs" (sic) - part of "The Woolverstone Festival" | E10: GO | F10: 1967 | H10: 7 | I10: 1967 | O10: 6768
A11: 8 | B11: M&D | C11: school play: "The Strong are Lonely" | E11: GO | F11: 1967 | H11: 7 | I11: 1967 | O11: 6768
A12: 9 | B12: M&D | C12: "See How They Run" - a staff drama was performed | E12: GO | F12: 1967 | H12: 7 | I12: 1967 | O12: 6768
A13: 10 | B13: M&D | C13: Halls House play "Noah" was performed | E13: GO | F13: 1967 | H13: 7 | I13: 1967 | O13: 6768
A14: 11 | B14: M&D | C14: "The Government Inspector" was performed. | E14: GO | F14: 1966 | H14: 7 | I14: 1966 | O14: 6566
A15: 12 | B15: M&D | C15: "I Killed The Count" was performed by 3rd & 4th forms. | E15: GO | F15: 1966 | H15: 7 | I15: 1966 | O15: 6566
A16: 13 | B16: death | C16: Commander Wiseman died | E16: GO | F16: 1966 | G16: 4 | H16: 6 | I16: 1966 | O16: 6566 | Q16: Commander | R16: John | S16: Wiseman | V16: DS | W16: died | X16: Bursar | AD16: came with LNS in 1947 when it transferred from Maiden head
A17: 14 | B17: travel | C17: Easter school trip to France (Poole & Ramsay) | E17: GO | F17: 1966 | H17: 4 | I17: 1966 | O17: 6566
A18: 15 | B18: travel | C18: Expedition to Spain | E18: GO | F18: 1967 | G18: 22 | H18: 3 | I18: 1967 | O18: 6667
A19: 16 | B19: M&D | C19: "Let's make an Opera" was performed | E19: GO | F19: 1967 | G19: 17 | H19: 3 | I19: 1967 | O19: 6667
A20: 17 | B20: staffing | C20: Michael Watts left after being Dep. Head. since 1973. | E20: GO | F20: 1968 | H20: 3 | I20: 1968 | O20: 6768 | Q20: Mr | R20: Michael | S20: Watts | V20: T | W20: left WHS | X20: Deputy-Head | Y20: Mr Hudson | AE20: Grammar Sch. At Yarm, West Riding
A21: 18 | B21: premises | C21: Lots of improvements to the library. | E21: GO | F21: 1966 | I21: 1966 | O21: 6566
A22: 19 | B22: sport | C22: The 1st XV played The Old Woolverstonians. Losing 9-12 | F22: 1967 | G22: 16 | H22: 12 | I22: 1967 | O22: 6768
A23: 20 | B23: M&D | C23: school play | F23: 1968 | G23: 13 | H23: 12 | I23: 1968
A24: 21 | B24: staffing | C24: Mr A. Allchin left WHS as teacher of Geog. & Maths | F24: 1967 | H24: 12 | I24: 1966 | O24: 6667 | P24: 6 years | Q24: Mr | R24: A. | S24: Allchin | U24: Chinny | V24: T | W24: left WHS | X24: teacher | AA24: Geog / Maths | AC24: - very active in outdoor activities, esp. sailing - i/c Sea Cadets before disbandment - helped with DofE | AE24: becomes Warden at Tynemouth Field Centre at High Borras near Lake Windermere
A25: 22 | B25: staffing | C25: Mr H. C. A. Thomas left as Housemaster of Corners | F25: 1967 | H25: 12 | I25: 1966 | O25: 6667 | P25: 8 years | Q25: Mr | R25: H.C.A. | S25: Thomas | T25: Corners | U25: Tooms | V25: T | W25: left WHS | X25: Housemaster | AA25: Chemistry | AE25: moved into house near end Mannings Lane
A26: 23 | B26: staffing | C26: Mr N. McNichol left WHS as Teacher of Biology | F26: 1967 | H26: 12 | I26: 1966 | O26: 6667 | Q26: Mr | R26: N. | S26: McNichol | T26: Berners | V26: T | W26: left WHS | X26: Teacher | Z26: C. J. Hawes | AA26: Biology | AC26: helped in Berners | AE26: went to boarding school in Switzerland
A27: 24 | B27: staffing | C27: Peter Bond left after 2 years teaching English | F27: 1968 | H27: 12 | I27: 1967 | O27: 6768 | Q27: Mr | R27: Peter | S27: Bond | V27: T | W27: left WHS | X27: English Teacher | AC27: badminton & school drama | AE27: Carisbrooke G.S. I.O.W.
A28: 25 | B28: staffing | C28: Peter Bond left Johnstons as Asst. Housemaster | F28: 1968 | H28: 12 | I28: 1967 | O28: 6768 | Q28: Mr | R28: Peter | S28: Bond | T28: Johnstons | V28: T | W28: left WHS | X28: Asst. Housemaster
A29: 26 | B29: premises | C29: new teaching block almost complete - between metalwork rooms and Sports Store | F29: 1967 | H29: 12 | I29: 1967 | O29: 6768
A30: 27 | B30: staffing | C30: Sister K. Hamon left WHS after 9 years service | F30: 1966 | H30: 12 | I30: 1965 | O30: 6566 | Q30: Sister | R30: K. | S30: Hamon | V30: DS | W30: retired | X30: Sister in SB | AE30: moved to Jersey
A31: 28 | B31: staffing | C31: Mr P. Rees left | F31: 1966 | H31: 12 | I31: 1965 | O31: 6566 | Q31: Mr | R31: P. | S31: Rees | V31: T | W31: left WHS | X31: teacher | AA31: English
A32: 29 | B32: staffing | C32: Mr Claude Giletti started WHS as French Assistant | F32: 1967 | H32: 10 | I32: 1967 | O32: 6768 | P32: 1 year | Q32: Mr | R32: Claude | S32: Giletti | V32: T | W32: started WHS | X32: Language Assistant | AA32: French | AD32: Uni Lyon/ Psychology
A33: 30 | B33: staffing | C33: Miss Frances Smith started as tuckshop Manageress | F33: 1967 | H33: 10 | I33: 1967 | O33: 6768 | Q33: Miss | R33: Frances | S33: Smith | V33: DS | W33: started | X33: tuckshop Manageress | Y33: Mr Mann
A34: 31 | B34: staffing | C34: Mr UNKNOWN Mann started as Chief Asst. To Mr Cockayne | F34: 1967 | H34: 10 | I34: 1967 | O34: 6768 | Q34: Mr | R34: UNKNOWN | S34: Mann | V34: DS | W34: started | X34: Chief Asst. To Mr Cockayne
A35: 32 | B35: staffing | C35: Mr E.E. Gower started as Corners Gardener | F35: 1967 | H35: 10 | I35: 1967 | O35: 6768 | Q35: Mr | R35: E.E. | S35: Gower | T35: Corners | V35: DS | W35: started | X35: Corners Gardener
A36: 33 | B36: honour | C36: Paul Finch named Head Boy | D36: 1 | F36: 1967 | H36: 9 | I36: 1967 | O36: 6768 | P36: 1 year | Q36: Mr | R36: Paul | S36: Finch | V36: P | W36: appointed | X36: Head Boy | Y36: Peter Lover | AF36: also Head of Hansons House
A37: 34 | B37: staffing | C37: Mr Francis Gruie started WHS as French Assistant | F37: 1967 | H37: 9 | I37: 1966 | O37: 6667 | P37: 1 year | Q37: Mr | R37: Francis | S37: Gruie | V37: T | W37: started WHS | X37: Language Assistant | AA37: French
A38: 35 | B38: staffing | C38: Mr Herman Linder started WHS as German Assistant | F38: 1967 | H38: 9 | I38: 1966 | O38: 6667 | P38: 1 year | Q38: Mr | R38: Herman | S38: Linder | V38: T | W38: started WHS | X38: Language Assistant | AA38: German | AD38: Uni Munich/English & Latin
A39: 36 | B39: staffing | C39: Gunter Feneis arrived as German Assistant. | F39: 1968 | H39: 9 | I39: 1968 | O39: 6869 | Q39: Mr | R39: Gunter | S39: Watts | V39: T | W39: arrived | X39: German Asst.
A40: 37 | B40: staffing | C40: Gerard Labarre arrived as French Assistant. | F40: 1968 | H40: 9 | I40: 1968 | O40: 6869 | Q40: Mr | R40: Gerard | S40: Watts | V40: T | W40: arrived | X40: French Asst.
A41: 38 | B41: honour | C41: Henry Gibbons appointed Head Boy | D41: 1 | F41: 1968 | H41: 9 | I41: 1968 | O41: 6869 | Q41: Mr | R41: Henry | S41: Gibons | V41: B | W41: appointed | X41: Head Boy
A42: 39 | B42: staffing | C42: Malcolm Pool was Deputy-Head for one term. | F42: 1968 | H42: 9 | I42: 1968 | O42: 6869 | Q42: Mr | R42: Malcolm A. R. | S42: Poole | V42: T | W42: started | X42: Temp. Deputy-Head | Y42: Michael Watts | Z42: Peter Hudson
A43: 40 | B43: staffing | C43: The new Bursar arrived: Norman Cockayne. | F43: 1966 | H43: 9 | I43: 1966 | O43: 6566 | Q43: Mr | R43: Norman | S43: Cockayne | V43: DS | W43: arrived | X43: Bursar | Y43: Commander Wiseman | AD43: Admin Officer with ILEA in Countxy Hall - previously with LCC Ed. Service since 1936
A44: 41 | B44: honour | C44: Peter Lover appointed Head Boy. | D44: 1 | F44: 1966 | H44: 9 | I44: 1966 | O44: 6566 | Q44: Mr | R44: Peter | S44: Lover | V44: B | W44: appointed | X44: Head Boy | Y44: V. Lockett
A45: 42 | B45: staffing | C45: Sister M. D. Godwin appointed i/s Sick Bay. | F45: 1966 | H45: 9 | I45: 1966 | O45: 6566 | Q45: Miss | R45: S. D. | S45: Godwin | V45: DS | W45: started | X45: i/c Sick Bay
A46: 43 | B46: staffing | C46: Sister M. D. Godwin arrived as nurse. | F46: 1966 | H46: 9 | I46: 1965 | O46: 6566 | Q46: Miss | R46: S. D. | S46: Godwin | V46: DS | W46: started | X46: nurse
A47: 44 | B47: wedding | C47: Glenys Talbot married Glyn Pettit in Shropshire | F47: 1967 | G47: 29 | H47: 7 | I47: 1967 | O47: 6667
A48: 45 | B48: official | C48: Speech Day - M. Lockett gave vote of thanks | F48: 1966 | G48: 16 | H48: 7 | I48: 1966 | O48: 6566
A49: 46 | B49: official | C49: Speech Day - Mrs Chaplin presided - Paul Lover made a speech | F49: 1967 | G49: 15 | H49: 7 | I49: 1967 | O49: 6667
A50: 47 | B50: staffing | C50: Mrs UNKNOWN Wells started as Assistant Bursar to Miss Shaw | F50: 1967 | H50: 7 | I50: 1967 | O50: 6768 | Q50: Mrs | R50: UNKNOWN | S50: Wells | V50: DS | W50: started | X50: Assistant Bursar to Miss Shaw | Y50: Glenys Talbot
A51: 48 | B51: staffing | C51: Mr Francis Gruie left WHS as French Language Assistant | F51: 1967 | H51: 7 | I51: 1967 | O51: 6566 | P51: 1 year | Q51: Mr | R51: Francis | S51: Gruie | V51: T | W51: left WHS | X51: Language Assistant | Z51: Claude Giletti | AA51: French
A52: 49 | B52: staffing | C52: Ms Glenys Talbot left as Asst. Dom. Bursar | F52: 1967 | H52: 7 | I52: 1967 | O52: 6667 | P52: 1 year | Q52: Ms | R52: Glenys | S52: Talbot | V52: DS | W52: left WHS | X52: Asst. Dom. Bursar | AF52: got married July 29th 1967 to Mr Glyn Pettit
A53: 50 | B53: staffing | C53: Mr Herman Linder left WHS as German Assistant | F53: 1967 | H53: 7 | I53: 1967 | O53: 6667 | P53: 1 year | Q53: Mr | R53: Herman | S53: Linder | V53: T | W53: left WHS | X53: Language Assistant
A54: 51 | B54: M&D | C54: school play: "Chips With Everything" | F54: 1967 | H54: 7 | I54: 1967 | O54: 6768
A55: 52 | B55: staffing | C55: Mr Anton Presisegger left WHS as German Assistant | F55: 1967 | H55: 7 | I55: 1966 | O55: 6667 | P55: 1 year | Q55: Mr | R55: Anton | S55: Presisegger | V55: T | W55: left WHS | X55: Language Assistant | Z55: Hermann Linder | AA55: German | AE55: returned to Vienna
A56: 53 | B56: staffing | C56: Hermann Linder left as German Assistant. | F56: 1968 | H56: 7 | I56: 1967 | O56: 6768 | Q56: Mr | R56: Herman | S56: Linder | V56: T | W56: left WHS | X56: German Asst.
A57: 54 | B57: staffing | C57: Claude Giletti left as French Assistant. | F57: 1968 | H57: 7 | I57: 1968 | O57: 6768 | Q57: Mr | R57: Claude | S57: Giletti | V57: T | W57: left WHS | X57: French Asst.
A58: 55 | B58: academic | C58: Richard D. Davies awarded Open Exhibition to St Johns College, Cambridge | D58: 1 | F58: 1968 | H58: 7 | I58: 68 | O58: 6768 | Q58: Mr | R58: Richard | S58: Davies | V58: B | W58: Open Ex.
A59: 56 | B59: wedding | C59: Joan Meeds married Peter Bond in Ipswich | F59: 1967 | H59: 7 | I59: 1967 | O59: 6667
A60: 57 | B60: staffing | C60: Hans Buchanan, the German Assistant, left. | F60: 1966 | H60: 7 | I60: 1966 | O60: 6566 | Q60: Mr | R60: Hans | S60: Buchmann | V60: T | W60: left WHS | X60: Language Assistant | AA60: German | AE60: returned to Switzerland
A61: 58 | B61: academic | C61: Peter McNair won Open Exhibition in History to Selwyn College, Cambridge. | D61: 1 | F61: 1966 | H61: 7 | I61: 1966 | O61: 6566 | Q61: Mr | R61: Peter | S61: McNair | V61: B | W61: Open Ex.
A62: 59 | B62: academic | C62: Geraint L. Howell won Open Exhibition in History to Jesus College, Oxford. | D62: 1 | F62: 1966 | H62: 7 | I62: 1966 | O62: 6566 | Q62: Mr | R62: Geraint L. | S62: Howell | V62: B | W62: Open Ex.
A63: 60 | B63: premises | C63: "The Holly" acquired by school - Bursar lives on ground floor - top floor to be converted into 2 flats. | F63: 1966 | H63: 7 | I63: 1966 | O63: 6667
A64: 61 | B64: sport | C64: M. Lockett won the Senior X-Country by 49s in 24m17s. | D64: 1 | F64: 1966 | H64: 7 | I64: 1966 | O64: 6566 | V64: B
A65: 62 | B65: birth | C65: Mr Mrs Turner had son Robert | F65: 1968 | G65: 13 | H65: 6 | I65: 1968
A66: 63 | B66: birth | C66: Mr Mrs Hutchinson had son Richard Alexander Jonathan | F66: 1968 | G66: 3 | H66: 5 | I66: 1968
A67: 64 | B67: staffing | C67: Miss J. Meeds came as Asst. Sister in SB. | F67: 1966 | H67: 5 | I67: 1966 | O67: 6667 | Q67: Miss | R67: J. | S67: Meeds | V67: DS | W67: started | X67: Sister | AD67: Avery Hill Tchr. Training Coll.
A68: 65 | B68: staffing | C68: C. Westlake spent 1 term teaching History | F68: 1968 | H68: 4 | I68: 1968 | O68: 6768 | P68: 1 term | Q68: Mr | R68: C. | S68: Westlake | V68: T | W68: left WHS | X68: Teacher | AA68: History | AD68: P.G.C.E. At Cambridge | AE68: Queen Mary's G.S. Walsall, Brian Middlebrook's old school
A69: 66 | B69: birth | C69: Mr Mrs Watts had son Joseph | F69: 1968 | H69: 4 | I69: 1968
A70: 67 | B70: staffing | C70: Mr J. McKenzie left after teaching Art for 2 years and serving as Orwell Asst. Housemaster | F70: 1966 | H70: 4 | I70: 1966 | O70: 6566 | Q70: Mr | R70: J. | S70: McKenzie | V70: T | W70: left WHS | X70: teacher | AA70: Art | AC70: worked in Printing Society and on stage sets | AE70: a school in New Zealand
A71: 68 | B71: staffing | C71: Hans Buchanan, the German Assistant, left. | F71: 1966 | H71: 4 | I71: 1966 | O71: 6566 | Q71: Mr | R71: UNKNOWN | S71: Scott | V71: T | W71: left WHS | X71: Asst. Domestic Bursar
A72: 69 | B72: staffing | C72: Miss G. Talbot arrived as Asst, Bursar. | F72: 1966 | H72: 4 | I72: 1966 | O72: 6566 | Q72: Miss | R72: G. | S72: Talbot | V72: DS | W72: started | X72: Asst. Bursar
A73: 70 | B73: staffing | C73: Mike Coulter arrived to take over Art Department. | F73: 1966 | H73: 4 | I73: 1966 | O73: 6667 | Q73: Mr | R73: Mike J. | S73: Coulter | V73: T | W73: started | X73: Head of Dept. | Y73: Ernie Green | AA73: Art | AD73: Rising Brook School in Stafford
A74: 71 | B74: staffing | C74: Mike Coulter appointed Asst Housemaster of Halls. | F74: 1966 | H74: 4 | I74: 1966 | O74: 6667 | Q74: Mr | R74: Mike J. | S74: Coulter | T74: Halls | V74: T | W74: started | X74: Asst. Housemaster Halls
A75: 72 | B75: staffing | C75: Mr S. S. Tong came as Student Teacher for Easter term. | F75: 1966 | H75: 4 | I75: 1966 | O75: 6566 | Q75: Mr | R75: S. S. | S75: Tong | V75: ST | W75: started | X75: student tchr. | AA75: English
A76: 73 | B76: staffing | C76: Mr C. Jones came as Student Teacher for Easter term. | F76: 1966 | H76: 4 | I76: 1966 | O76: 6566 | Q76: Mr | R76: C. | S76: Jones | V76: ST | W76: started | X76: student tchr. | AA76: Maths | AE76: teaching in Oundle
A77: 74 | B77: staffing | C77: Mr R. Elms came as Student Teacher for Easter term. | F77: 1966 | H77: 4 | I77: 1966 | O77: 6566 | Q77: Mr | R77: R. | S77: Elms | V77: ST | W77: started | X77: student tchr. | Y77: Mr Cox | AA77: Physics | AE77: V.S.O. In Nigeria
A78: 75 | B78: Old Boys | C78: Old Boys' Association Annual General Meeting | F78: 1967 | G78: 22 | H78: 3 | I78: 1967 | O78: 6667
A79: 76 | B79: event | C79: Virus "B" filled Sick Bay and caused cancellation of the Stowe Exchange. | F79: 1966 | H79: 2 | I79: 1966 | O79: 6566
A80: 77 | B80: birth | C80: Mr Mrs Mann had daughter Nicola Jane | F80: 1968 | G80: 30 | H80: 1 | I80: 1968
A81: 78 | B81: staffing | C81: Mr R.W. Barker started WHS as Housemaster | F81: 1967 | H81: 1 | I81: 1967 | O81: 6768 | Q81: Mr | R81: R.W. | S81: Barker | T81: Corners | V81: T | W81: started WHS | X81: Housemaster | Y81: H.C.A. Thomas | AA81: Maths
A82: 79 | B82: staffing | C82: Mr Colin J. Hawes started WHS as Teacher of Biology | F82: 1967 | H82: 1 | I82: 1967 | O82: 6667 | Q82: Mr | R82: Colin J. | S82: Hawes | V82: T | W82: started WHS | X82: Teacher | Y82: N. McNichol | AA82: Biology | AD82: Northgate G.S./BSc. London Univ. Year at Exeter Univ. Researching Plant Pathology
A83: 80 | B83: staffing | C83: Mr Colin J. Hawes started as Asst. Housemaster of Berners | F83: 1967 | H83: 1 | I83: 1967 | O83: 6667 | Q83: Mr | R83: Colin J. | S83: Hawes | T83: Berners | V83: T | W83: started | X83: Asst. Housemaster | AA83: Biology | AD83: Northgate G.S./BSc. London Univ. Year at Exeter Univ. Researching Plant Pathology
A84: 81 | B84: staffing | C84: Mr R.P.D. Hutchinson started WHS as Teacher | F84: 1967 | H84: 1 | I84: 1967 | O84: 6667 | Q84: Mr | R84: R.P.D. | S84: Hutchinson | V84: T | W84: started WHS | X84: Teacher | Y84: Mr Allchin | AA84: Geography | AD84: Newcastle Uni/Crosse & Blackwell/2.5 yrs teaching in rural Tanzania
A85: 82 | B85: staffing | C85: Mr R.W Barker replaced Mr Thomas as Housemaster of Corners | F85: 1967 | H85: 1 | I85: 1967 | O85: 6667 | Q85: Mr | R85: R.W | S85: Barker | T85: Corners | V85: T | W85: started | X85: Housemaster | Y85: H.C.A. Thomas
A86: 83 | B86: staffing | C86: Mr UNKNOWN Jones started as student teacher of Mod Langs | F86: 1967 | H86: 1 | I86: 1967 | O86: 6667 | P86: 1 term | Q86: Mr | R86: UNKNOWN | S86: Jones | V86: T | W86: started | X86: Student Teacher | AA86: French & German | AD86: from Oxford | AE86: teaching in France
A87: 84 | B87: staffing | C87: Student Mr UNKNOWN Strickland started as Maths Teacher | F87: 1967 | H87: 1 | I87: 1967 | O87: 6667 | P87: 1 term | Q87: Mr | R87: UNKNOWN | S87: Strickland | V87: T | W87: started | X87: Student Teacher | AA87: Maths | AD87: from Cambridge | AE87: Wycliffe College Worcs
A88: 85 | B88: staffing | C88: Mike J. Coulter replaced Brian Middlebrook as Housemaster of Halls | F88: 1967 | H88: 1 | I88: 1967 | O88: 6768 | P88: 1 year | Q88: Mr | R88: Mike J. | S88: Coulter | T88: Halls | V88: T | W88: started | X88: Housemaster | Y88: Brian Middlebrook
A89: 86 | B89: staffing | C89: Peter Hudson arrived as Deputy-Head | F89: 1968 | H89: 1 | I89: 1969 | O89: 6869 | Q89: Mr | R89: Peter | S89: Hudson | V89: T | W89: arrived | X89: Deputy-Head | Y89: Malcolm Poole | AD89: Denstone College
A90: 87 | B90: staffing | C90: Rev. T Johnstone arrived as "Asst. English Master" for 1 term | F90: 1968 | H90: 1 | I90: 1968 | O90: 6768 | P90: 1 term | Q90: Mr | R90: T. | S90: Johnstone | V90: T | W90: arrived | X90: Teacher | AA90: English | AF90: from Buenos Aires - polyglot & expert on Baron Munchhausen
A91: 88 | B91: staffing | C91: Peter Bond arrived to teach English. | F91: 1966 | H91: 1 | I91: 1966 | O91: 6566 | Q91: Mr | R91: Peter D. | S91: Bond | V91: T | W91: started | X91: teacher | AA91: English | AD91: Cambridge, Army & 5 yrs teaching in Malaya & then at Sidcup G.S.
A92: 89 | B92: staffing | C92: Mr Brian Middlebrook on sabbatical doing Educational Psychology at Cambridge | F92: 1967 | I92: 1967 | O92: 6768 | P92: 1 year | Q92: Mr | R92: Brian | S92: Middlebrook | T92: Halls | U92: Stringy | V92: T | W92: on leave | Z92: Mike Coulter | AA92: Latin | AF92: course on Educational Psychology at Cambridge
A93: 90 | B93: honour | C93: Paul Finch awarded Open Scholarship in History to Selwyn College Cambridge | D93: 1 | F93: 1968 | R93: Paul | S93: Finch | W93: Open Scholarship
A94: 91 | B94: honour | C94: G. Egan won Travelling Scholarship to France | D94: 1 | F94: 1968
A95: 92 | B95: honour | C95: R.R. Austin awarded R.A.F. Flying Scholarship | D95: 1 | F95: 1968
A96: 93 | B96: sport | C96: Nusrat Nazeer scored 100 n.n. V King's Macclesfield & took 7 wickets for 18 runs v Norwich School | F96: 1967 | I96: 1967 | O96: 6667
A97: 94 | B97: M&D | C97: 150 boys now learn and play at least one musical instrument | F97: 1967 | I97: 1967 | O97: 6768
A98: 95 | B98: premises | C98: alterations to "The Holly" completed - occupied by Miss K-Shaw & Miss Smith | F98: 1967 | I98: 1967 | O98: 6768
A99: 96 | B99: sport | C99: The 1st XV beat Colchester 22-8 and lost NO matches against schools; only drawing 3-3 with Wymondham | D99: 1 | F99: 1967 | I99: 1967 | O99: 6667
A100: 97 | B100: premises | C100: The swimming-pool now has a cover! | F100: 1967 | I100: 1967 | O100: 6667
A101: 98 | B101: event | C101: The WHS-STOWE Exchange took place | F101: 1967 | I101: 1967 | O101: 6667
A102: 99 | B102: event | C102: The parents Ass. Replaced one of the Enterprise boats and paid for the paving round the swimming-pool | F102: 1966 | I102: 1966 | O102: 6566
A103: 100 | B103: sport | C103: Phil Davies represented Suffolk in All-England Athletics Champ. for 3rd time. | D103: 1 | F103: 1966 | I103: 1966 | O103: 6566 | R103: Philip | S103: Davies | T103: Berners | U103: Ugg | V103: B | W103: All-England
A104: 101 | B104: staffing | C104: Mr Farthing left as Corners Gardener after a series of illnesses. | F104: 1966 | I104: 1966 | O104: 6566 | V104: DS | X104: Gardener | Z104: Mr Gower
A105: 102 | B105: honour | C105: Peter Lover won the Rowland Memorial Prize. | D105: 1 | F105: 1966 | I105: 1966 | O105: 6566 | Q105: Mr | R105: Peter | S105: Lover | V105: B | W105: won prize | X105: Head Boy
A106: 103 | B106: honour | C106: David Pearn qualified for V.S.O. In Zambia. | D106: 1 | F106: 1966 | I106: 1966 | O106: 6566 | R106: David | S106: Pearn | T106: Halls | V106: B
A107: 104 | B107: staffing | C107: Peter Sadler got married. | F107: 1966 | I107: 1966 | O107: 6566 | R107: Peter | S107: Sadler | T107: Berners | V107: T
A108: 105 | B108: sport | C108: Loch Trimminglam and Goodman awarded athletics colours, very unusual for IVth formers. | D108: 1 | F108: 1966 | I108: 1966 | O108: 6566 | V108: B
A109: 106 | B109: event | C109: Leslie Woolford visited WHS to give a talk on history of WHS. | F109: 1966 | I109: 1966 | O109: 6566 | R109: Leslie | S109: Woolford | V109: FT
A110: 107 | B110: sport | C110: Only ONE MATCH was lost to a school by the top SIX RUGBY TEAMS. | D110: 1 | F110: 1966 | I110: 1966 | O110: 6566
A111: 108 | B111: sport | C111: Phil Davies won the 100 yards in 10.4 seconds. | D111: 1 | F111: 1966 | I111: 1966 | O111: 6566 | V111: B
A112: 109 | B112: M&D | C112: "The St John Passion" was performed. | F112: 1966 | I112: 1966 | O112: 6566
A113: 110 | B113: premises | C113: the new science block was completed | F113: 1968 | H113: 9 | I113: 1968 | O113: 6869
A114: 111 | B114: premises | C114: the Art Room was extended | F114: 1968 | H114: 9 | I114: 1968 | O114: 6869
A115: 112 | B115: premises | C115: Old Staffroom given up for Library extension - staff now using two rooms in former Deputy-Head's house | F115: 1968 | H115: 9 | I115: 1968 | O115: 6869
A116: 113 | B116: official | C116: Speech Day | F116: 1968 | G116: 13 | H116: 7 | I116: 1968 | O116: 6768
A117: 114 | B117: official | C117: Mrs A Forbes-Cockell became new Chairman of Governors | F117: 1968 | O117: 6869 | W117: appointed
A118: 115 | B118: birth | C118: Mr Mrs Clayton had son Roderick Edward | F118: 1968 | G118: 18 | H118: 9 | I118: 1968 | O118: 6869
A119: 116 | B119: birth | C119: Mr Mrs Sadler had daughter Tanja | F119: 1968 | G119: 7 | H119: 10 | I119: 1968 | O119: 6869
A120: 117 | B120: sport | C120: John Martin represented Suffolk in the All-England Meeting | D120: 1 | F120: 1968 | H120: 7 | I120: 1968 | O120: 6768 | R120: John | S120: Martin
A121: 118 | B121: sport | C121: Orwell won the inter-house athletics competition for 5th successive year. | D121: 1 | F121: 1968 | H121: 7 | I121: 1968 | O121: 6768 | W121: left WHS
A122: 119 | B122: boys | C122: Music legend Richard Davis left this year | D122: 1 | F122: 1968 | H122: 7 | I122: 1968 | O122: 6768 | R122: Richard | S122: Davis | T122: Orwell | W122: left WHS
A123: 120 | B123: M&D | C123: "Crime and Punishment" was performed | E123: GO | F123: 1968 | H123: 7 | I123: 1968 | O123: 6768 | AF123: assumed July - no date found
A124: 121 | B124: M&D | C124: "Journey's End" was performed | E124: GO | F124: 1968 | H124: 7 | I124: 1968 | O124: 6768
A125: 122 | B125: travel | C125: School trip to Austria led by Mr Waters and Mr Coulter | F125: 1968 | H125: 7 | I125: 1968 | O125: 6768
A126: 123 | B126: honour | C126: Barry Clark awarded Distinction in Teaching Practice at College of St. Mark & St. John | D126: 1 | F126: 1968 | I126: 1968 | O126: 6768
A127: 124 | B127: honour | C127: Mark Wing-Davey named Head of Orwell House | D127: 1 | F127: 1966 | I127: 1966 | O127: 6667 | R127: Mark | S127: Wing-Davey | T127: Orwell | V127: HH | W127: appointed | X127: Head of House
A128: 125 | B128: honour | C128: Anthony Pye named Head of Berners House | D128: 1 | F128: 1966 | I128: 1966 | O128: 6667 | R128: Anthony | S128: Pye | T128: Berners | V128: HH | W128: appointed | X128: Head of House
A129: 126 | B129: honour | C129: Peter Lover named Head of Halls House | D129: 1 | F129: 1966 | I129: 1966 | O129: 6667 | R129: Peter | S129: Lover | T129: Halls | V129: HH | W129: appointed | X129: Head of House
A130: 127 | B130: honour | C130: Ian McEwan named Head of Johnstons House | D130: 1 | F130: 1966 | I130: 1966 | O130: 6667 | R130: Ian | S130: McEwan | T130: Johnstons | V130: HH | W130: appointed | X130: Head of House
A131: 128 | B131: honour | C131: Dennis Lingard names Head of Hansons House | D131: 1 | F131: 1966 | I131: 1966 | O131: 6667 | R131: Dennis | S131: Lingard | T131: Hansons | V131: HH | W131: appointed | X131: Head of House
A132: 129 | B132: honour | C132: David G. Neale named Head of Corners House | D132: 1 | F132: 1966 | I132: 1966 | O132: 6667 | R132: David G. | S132: Neale | T132: Corners | V132: HH | W132: appointed | X132: Head of House
A133: 130 | B133: honour | C133: Peter Daish appointed Captain of Cricket | D133: 1 | F133: 1966 | I133: 1966 | O133: 6667 | R133: Peter | S133: Daish | V133: CC | W133: appointed | X133: Cricket Captain
A134: 131 | B134: honour | C134: Peter Jones appointed Captain of Rugby | D134: 1 | F134: 1967 | I134: 1966 | O134: 6667 | R134: Peter | S134: Jones | V134: CR | X134: Cricket Rugby
A135: 132 | B135: M&D | C135: Peter Lover produced Vith form's "Waiting for Godot" | D135: 1 | E135: GO | F135: 1966 | H135: 7 | I135: 1966 | O135: 6566 | Q135: Mr | R135: Peter | S135: Lover | V135: B
A136: 133 | B136: sport | C136: The staff beat the boys in the football match 1-0. | E136: GO | F136: 1966 | H136: 7 | I136: 1966 | O136: 6566
A137: 134 | B137: M&D | C137: "Breaking Point" produced by Upper Vith | E137: GO | F137: 1966 | H137: 7 | I137: 1966 | O137: 6566
A138: 135 | B138: travel | C138: Austria & Germany (Thornbery, Davies & Wild) | E138: GO | F138: 1966 | H138: 8 | I138: 1966 | O138: 6566
A139: 136 | B139: honour | C139: Michael J. Radford named Head of Berners | D139: 1 | F139: 1967 | H139: 9 | I139: 1967 | O139: 6768 | R139: Michael | S139: Radford | T139: Berners | V139: B | W139: appointed | X139: Head of House
A140: 137 | B140: honour | C140: Franklin C. Grigor named Head of Corners | D140: 1 | F140: 1967 | H140: 9 | I140: 1967 | O140: 6768 | R140: Franklin | S140: Grigor | T140: Corners | V140: B | W140: appointed | X140: Head of House
A141: 138 | B141: honour | C141: David E. Howard named Head of Halls | D141: 1 | F141: 1967 | H141: 9 | I141: 1967 | O141: 6768 | R141: David | S141: Howard | T141: Halls | V141: B | W141: appointed | X141: Head of House
A142: 139 | B142: honour | C142: Paul Finch named Head of Hansons | D142: 1 | F142: 1967 | H142: 9 | I142: 1967 | O142: 6768 | R142: Paul | S142: Finch | T142: Hansons | V142: B | W142: appointed | X142: Head of House
A143: 140 | B143: honour | C143: Hugh Templeton named Head of Johnstons | D143: 1 | F143: 1967 | H143: 9 | I143: 1967 | O143: 6768 | R143: Hugh | S143: Templeton | T143: Johnstons | V143: B | W143: appointed | X143: Head of House
A144: 141 | B144: honour | C144: Richard Davies named Head of Orwell | D144: 1 | F144: 1967 | H144: 9 | I144: 1967 | O144: 6768 | R144: Richard | S144: Davies | T144: Orwell | V144: B | W144: appointed | X144: Head of House
A145: 142 | B145: birth | C145: Mr Mrs Waters had daughter Sarah Elizabeth Jane | F145: 1967 | G145: 23 | H145: 5 | I145: 1967 | O145: 6768
A146: 143 | B146: birth | C146: Mr Mrs Hawes had son Jonathan William | F146: 1967 | G146: 15 | H146: 7 | I146: 1967 | O146: 6768
A147: 144 | B147: birth | C147: Mr Mrs Skailes had daughter Charlotte Elizabeth Rosalind | F147: 1967 | G147: 18 | H147: 7 | I147: 1967 | O147: 6768
A148: 145 | B148: honour | C148: Christopher A. Curran named Head of Berners House | D148: 1 | F148: 1968 | H148: 9 | I148: 1968 | O148: 6869 | R148: Christopher | S148: Curran | T148: Berners | V148: HH | W148: appointed | X148: Head of House
A149: 146 | B149: honour | C149: Guy R. Austin named head of Corners House | D149: 1 | F149: 1968 | H149: 9 | I149: 1968 | O149: 6869 | R149: Guy | S149: Austin | T149: Corners | V149: HH | W149: appointed | X149: Head of House
A150: 147 | B150: honour | C150: Michael C. Richards named head of Halls House | D150: 1 | F150: 1968 | H150: 9 | I150: 1968 | O150: 6869 | R150: Michael | S150: Richards | T150: Halls | V150: HH | W150: appointed | X150: Head of House
A151: 148 | B151: honour | C151: Henry Gibbons named head of Hansons House | D151: 1 | F151: 1968 | H151: 9 | I151: 1968 | O151: 6869 | R151: Henry | S151: Gibbons | T151: Hansons | V151: HH | W151: appointed | X151: Head of House
A152: 149 | B152: honour | C152: Anthony Mitton named head of Johnston's House | D152: 1 | F152: 1968 | H152: 9 | I152: 1968 | O152: 6869 | R152: Anthony | S152: Mitton | T152: Johnstons | V152: HH | W152: appointed | X152: Head of House
A153: 150 | B153: honour | C153: Charles D. Knight named head of Orwell House | D153: 1 | F153: 1968 | H153: 9 | I153: 1968 | O153: 6869 | R153: Charles | S153: Kinght | T153: Orwell | V153: HH | W153: appointed | X153: Head of House
A154: 151 | B154: boys | C154: Music legend Neil Cloake left this year | D154: 1 | F154: 1968 | H154: 7 | I154: 1968 | O154: 6768 | R154: Neil | S154: Cloake | T154: Orwell | W154: left WHS
A155: 152 | B155: staffing | C155: Brian Middlebrook left after 11 years at WHS. | F155: 1969 | H155: 7 | I155: 1968 | P155: 11 yrs | R155: Brian | S155: Middlebrook | U155: Stringy | V155: T | W155: left WHS | AE155: Lecturer in Education Sunderland Coll. Of Ed.
A156: 153 | B156: staffing | C156: B. S. Gorman left after teaching history and helping with games for 2 terms. | F156: 1969 | H156: 7 | I156: 1968 | P156: 2 terms | R156: B. S. | S156: Gorman | V156: T | W156: left WHS | AA156: history | AE156: went to Shawnigan Lake, Vancouver where Peter Josselyn taught.
A157: 154 | B157: staffing | C157: G. R. Ramm left after teaching woodwork. | F157: 1969 | H157: 7 | I157: 1968 | R157: G. R. | S157: Ramm | V157: T | W157: left WHS | AA157: woodwork
A158: 155 | B158: staffing | C158: A. F. Clayton left after spending summer term teaching history, classics and coaching U14s XI. | F158: 1969 | H158: 7 | I158: 1968 | P158: 1 term | R158: A. F. | S158: Clayton | V158: T | W158: left WHS | AE158: Aldenham School
A159: 156 | B159: staffing | C159: Neil Clayton on sabbatical reading for MA in Linguistics at Uni. Of Essex. | F159: 1969 | H159: 9 | I159: 1969 | P159: 1 year | R159: Neil | S159: Clayton | V159: T | W159: sabbatical
A160: 157 | B160: staffing | C160: Mrs M. Burt left WHS. | F160: 1969 | H160: 7 | I160: 1969 | Q160: Mrs | R160: M | S160: Burt | V160: DS | W160: left WHS
A161: 158 | B161: staffing | C161: Mr A. Fuller left WHS. | F161: 1969 | H161: 7 | I161: 1969 | Q161: Mr | R161: A. | S161: Fuller | V161: DS | W161: left WHS
A162: 159 | B162: staffing | C162: Miss Lyn Whyte left WHS. | F162: 1969 | H162: 7 | I162: 1969 | Q162: Miss | R162: Lyn | S162: Whyte | V162: DS | W162: left WHS
A163: 160 | B163: staffing | C163: Sister Cocks left WHS. | F163: 1969 | H163: 7 | I163: 1969 | Q163: Sister | S163: Cocks | V163: DS | W163: left WHS | X163: sister
A164: 161 | B164: staffing | C164: Gunter Feneis left as German Assistant. | F164: 1969 | H164: 7 | I164: 1969 | P164: 1 year | Q164: Mr | R164: Gunter | S164: Feneis | V164: GLA | W164: left WHS
A165: 162 | B165: staffing | C165: Gerard Labarre left as French Assistant. | F165: 1969 | H165: 7 | I165: 1969 | P165: 1 year | Q165: Mr | R165: Gerard | S165: Labarre | V165: FLA | W165: left WHS
A166: 163 | B166: staffing | C166: Mrs F. A. Malden left as Johnston's Housematron. | F166: 1969 | H166: 7 | I166: 1969 | P166: 8 years | Q166: Mrs | R166: F. A. | S166: Malden | V166: HSEM | W166: left WHS
A167: 164 | B167: staffing | C167: Mr David Hudson started as Deputy-Headmaster | F167: 1969 | H167: 1 | I167: 1969 | Q167: Mr | R167: David | S167: Hudson | V167: DH | W167: started WHS | X167: Deputy-Head | AA167: Geography | AB167: mountaineering/music | AD167: teaching in USA & Canada - working in timber business in London - teaching at Denstone College
A168: 165 | B168: staffing | C168: Mr Newman-Sanders arrived to teach Physics & Maths. | F168: 1969 | H168: 9 | I168: 1969 | Q168: Mr | R168: A. W. | S168: Newman-Sanders | V168: T | W168: started WHS | X168: Teacher | AA168: Maths/Physics | AD168: Caius Coll. Cambs - 1 year in industry - 7 years in RAF | AF168: His wife is French.
A169: 166 | B169: staffing | C169: Mr J. C. Morris arrived to teach history. | F169: 1969 | H169: 9 | I169: 1969 | Q169: Mr | R169: J. C. | S169: Morris | V169: T | W169: started WHS | X169: Teacher | AA169: History | AD169: St Edmund Hall, Oson - former pupil at Leighton Park School, where his English teacher was Neil Clayton.
A170: 167 | B170: staffing | C170: Mr. S. L. Croft arrived to teach English. | F170: 1969 | H170: 9 | I170: 1969 | K170: 7 | L170: 1970 | P170: 1 year | Q170: Mr | R170: S. L. | S170: Croft | V170: T | W170: started WHS | X170: Teacher | AA170: English | AB170: shooting/music/travel | AD170: Leeds Uni. & Keble, Oxon - taught in India & Pakistan
A171: 168 | B171: staffing | C171: Ben turner returned after sabbatical study year. | F171: 1969 | H171: 9 | I171: 1969 | Q171: Mr | R171: Ben R. | S171: Turner | W171: returned to WHS | X171: Teacher | AA171: Woodwork
A172: 169 | B172: staffing | C172: Paul Brun from Marseilles arrived as French Assistant. | F172: 1969 | H172: 9 | I172: 1969 | P172: 1 year | Q172: Mr | R172: Paul | S172: Brun | V172: FLA | W172: started WHS | X172: French Assistant
A173: 170 | B173: staffing | C173: Friedrich Schleudermann from Wuppertal arrived as German Assistant. | F173: 1969 | H173: 9 | I173: 1969 | P173: 1 year | Q173: Mr | R173: Friedrich | S173: Schleudermann | V173: GLA | W173: started WHS | X173: German Assistant
A174: 171 | B174: staffing | C174: Judy Green returned from year in Vienna. | F174: 1969 | H174: 9 | I174: 1969 | Q174: Miss | R174: Judy | S174: Green | V174: DS | W174: returned
A175: 172 | B175: staffing | C175: Miss A. Ferrier started as Assistant Bursar. | F175: 1969 | H175: 9 | I175: 1969 | Q175: Miss | R175: A. | S175: Ferrier | V175: ADB | W175: started WHS | X175: Assistant Bursar
A176: 173 | B176: staffing | C176: Miss C. Lee started as Assistant Sister. | F176: 1969 | H176: 9 | I176: 1969 | Q176: Miss | R176: C. | S176: Lee | V176: AS | W176: started WHS | X176: Assistant Sister
A177: 174 | B177: staffing | C177: Mr B Woolford started as Lab. Assistant. | F177: 1969 | H177: 9 | I177: 1969 | Q177: Mr | R177: B | S177: Woolford | V177: LAB | W177: started WHS | X177: Lab. Assistant
A178: 175 | B178: honour | C178: Philip A. Laughton appointed Head Boy & Head of Hansons. | D178: 1 | F178: 1969 | H178: 9 | I178: 1969 | Q178: Mr | R178: Philip A. | S178: Laughton | V178: B | W178: appointed | X178: Head Boy
A179: 176 | B179: death | C179: Terry Cleverley (61-67)reported killed in road RTA in Spain | F179: 1969 | H179: 7 | I179: 1969 | Q179: Mr | R179: Terry | S179: Cleverley | V179: OB | W179: died
A180: 177 | B180: death | C180: Mrs Doreen Thurston | F180: 1969 | I180: 1969 | V180: DS | W180: died
A181: 178 | B181: death | C181: Mr Leo Roberts | F181: 1969 | I181: 1969 | V181: DS | W181: died
A182: 179 | B182: death | C182: Miss Edith Rose | F182: 1969 | I182: 1969 | R182: Edith | S182: Rose | V182: DS | W182: died
A183: 180 | B183: honour | C183: Chris R. Curran appointed Head of Berners. | D183: 1 | F183: 1969 | H183: 9 | I183: 1969 | R183: Chris | S183: Curran | T183: Berners | V183: B | W183: appointed | X183: Head of House
A184: 181 | B184: honour | C184: Guy R. Austin appointed Head of Corners. | D184: 1 | F184: 1969 | H184: 9 | I184: 1969 | R184: Guy | S184: Austin | T184: Corners | V184: B | W184: appointed | X184: Head of House
A185: 182 | B185: honour | C185: Ceri. Ll Howell appointed Head of Halls. | D185: 1 | F185: 1969 | H185: 9 | I185: 1969 | R185: Ceri | S185: Howell | T185: Halls | V185: B | W185: appointed | X185: Head of House
A186: 183 | B186: honour | C186: Graeme Alexander appointed Head of Johnstons. | D186: 1 | F186: 1969 | H186: 9 | I186: 1969 | R186: Graeme | S186: Alexander | T186: Johnstons | V186: B | W186: appointed | X186: Head of House
A187: 184 | B187: honour | C187: Ian Turner appointed Head of Orwell. | D187: 1 | F187: 1969 | H187: 9 | I187: 1969 | R187: Ian | S187: Turner | T187: Orwell | V187: B | W187: appointed | X187: Head of House
A188: 185 | B188: honour | C188: Philip A. Laughton appointed Head of Hansons | D188: 1 | F188: 1969 | H188: 9 | I188: 1969 | M188: 6869 | R188: Philip | S188: Laughton | T188: Hansons | V188: B | W188: appointed | X188: Head of House
A189: 186 | B189: honour | C189: James Cottrell appointed Cricket Captain. | D189: 1 | F189: 1969 | H189: 9 | I189: 1969 | M189: 6869 | R189: James | S189: Cotrell | V189: B | W189: appointed | X189: Cricket Captain | Y189: Mike Radford
A190: 187 | B190: honour | C190: Ian Turner appointed Rugby Captain. | D190: 1 | F190: 1969 | H190: 9 | I190: 1969 | M190: 6869 | R190: Ian | S190: Turner | V190: B | W190: appointed | X190: Rugby Captain | Y190: James Cottrell
A191: 188 | B191: honour | C191: David Gush appointed Sailing Captain. | D191: 1 | F191: 1969 | H191: 9 | I191: 1969 | O191: 6869 | R191: David | S191: Gush | V191: B | W191: appointed | X191: Sailing Captain
A192: 189 | B192: premises | C192: 1,000 new books added to the Library in 1968-1969 - Greg. Moon was Chief Librariyn | F192: 1969 | H192: 9 | I192: 1969 | M192: 6869
A193: 190 | B193: event | C193: Judy Green wrote about her year in Vienna. | E193: GO | F193: 1969 | I193: 1969 | M193: 6869
A194: 191 | B194: sport | C194: Three boys including S. Davis, Peter Timms & Dave Waight played Carmarthen in Wales accompanied by Colin Hawes. | F194: 1969 | I194: 1969 | M194: 6869
A195: 192 | B195: travel | C195: Snowdon mountaineering trip: Ian Turner, Jim Wild, Paul Mattey and Derek Thornbery | F195: 1969 | H195: 4 | I195: 1969 | M195: 6869
A196: 193 | B196: activities | C196: report on the Stowe Exchange by S.L. Parperis | F196: 1969 | I196: 1969 | M196: 6869
A197: 194 | B197: staff | C197: Mr Mrs Poole left Hansons as Housemaster & Matron | F197: 1969 | H197: 4 | I197: 1969 | M197: 6869
A198: 195 | B198: staff | C198: Mr Poole took over as Housemaster of Halls | F198: 1969 | H198: 9 | I198: 1969 | M198: 6869
A199: 196 | B199: honour | C199: Henry Gibbons left Berners to take up place at Cambridge. | D199: 1 | F199: 1969 | H199: 7 | I199: 1969 | M199: 6869
A200: 197 | B200: staff | C200: Mr Mrs Hutchinson took over as Housemaster & Matron of Hansons. | F200: 1969 | H200: 9 | I200: 1969 | M200: 6869 | V200: HM | W200: started | Y200: Mr Mrs Poole
... 51 more rows

Sheet Sheet2

Sheet Sheet1
A5: DISTANCE | E5: TIMES
A6: METRES | B6: YARDS | D6: TIME | E6: METRES | F6: SECONDS | G6: YARDS | H6: SECONDS
A7: 1 | B7: 1.0936133 | C7: 1 | D7: =A7/B7 -> 0.9143999986 | E7: 10 | F7: =E7*B7 -> 10.936133 | G7: =F7*B8 -> 119.599005
A8: 10 | B8: =A8*$B$7 -> 10.936133 | C8: 10 | D8: =A8/B8 -> 0.9143999986 | E8: =E7+0.1 -> 10.1 | F8: =E8*B8 -> 110.4549433
A9: =A8+0.1 -> 10.1 | B9: =A9*$B$7 -> 11.04549433 | C9: 10.1 | D9: =A9/B9 -> 0.9143999986 | E9: =E8+0.1 -> 10.2 | F9: 112.6640422
A10: 10.2 | B10: 11.15485566 | C10: 10.2 | D10: 0.9143999986 | E10: 10.3 | F10: 114.8950133
A11: 10.3 | B11: 11.26421699 | C11: 10.3 | D11: 0.9143999986 | E11: 10.4 | F11: 117.1478567
A12: 10.4 | B12: 11.37357832 | C12: 10.4 | D12: 0.9143999986 | E12: 10.5 | F12: 119.4225724
A13: 10.5 | B13: 11.48293965 | C13: 10.5 | D13: 0.9143999986 | E13: 10.6 | F13: 121.7191603 | K13: 100
A14: 10.6 | B14: 11.59230098 | C14: 10.6 | E14: 10.7 | F14: 124.0376205
A15: 10.7 | B15: 11.70166231 | C15: 10.7 | E15: 10.8 | F15: 126.3779529
A16: 10.8 | B16: 11.81102364 | C16: 10.8 | E16: 10.9 | F16: 128.7401577
A17: 10.9 | B17: 11.92038497 | C17: 10.9 | E17: 11 | F17: 131.1242347
A18: 11 | B18: 12.0297463 | C18: 11 | E18: 11.1 | F18: 133.5301839
A19: 11.1 | B19: 12.13910763 | C19: 11.1 | E19: 11.2 | F19: 135.9580055
A20: 11.2 | B20: 12.24846896 | C20: 11.2 | E20: 11.3 | F20: 138.4076992 | K20: 100m = | L20: 1.09
A21: 11.3 | B21: 12.35783029 | C21: 11.3 | E21: 11.4 | F21: 140.8792653
A22: 11.4 | B22: 12.46719162 | C22: 11.4 | E22: 11.5 | F22: 143.3727036
A23: 11.5 | B23: 12.57655295 | C23: 11.5 | E23: 11.6 | F23: 145.8880142 | K23: 10
A24: 11.6 | B24: 12.68591428 | C24: 11.6 | E24: 11.7 | F24: 148.4251971
A25: 11.7 | B25: 12.79527561 | C25: 11.7 | E25: 11.8 | F25: 150.9842522
A26: 11.8 | B26: 12.90463694 | C26: 11.8 | E26: 11.9 | F26: 153.5651796 | J26: TIME
A27: 11.9 | B27: 13.01399827 | C27: 11.9 | E27: 12 | F27: 156.1679792 | J27: METRES | K27: YARDS
A28: =A27+0.1 -> 12 | B28: 13.1233596 | C28: 12 | J28: 10 | K28: 9.14
A29: 12.1 | B29: 13.23272093 | C29: 12.1 | J29: 11 | K29: 10.06
A30: 12.2 | B30: 13.34208226 | C30: 12.2 | J30: 11.1 | K30: 10.15
A31: 12.3 | B31: 13.45144359 | C31: 12.3 | J31: =J30+0.1 -> 11.2 | K31: 10.24
A32: 12.4 | B32: 13.56080492 | C32: 12.4 | J32: =J31+0.1 -> 11.3 | K32: 10.33
A33: 12.5 | B33: 13.67016625 | C33: 12.5 | J33: 11.4 | K33: 10.42
A34: 12.6 | B34: 13.77952758 | C34: 12.6 | J34: 11.5 | K34: 10.52
A35: 12.7 | B35: 13.88888891 | C35: 12.7 | J35: 11.6 | K35: 10.61
A36: =A35+0.1 -> 12.8 | B36: 13.99825024 | C36: 12.8 | J36: 11.7 | K36: 10.7
A37: 12.9 | B37: 14.10761157 | C37: 12.9 | J37: 11.8 | K37: 10.79
A38: 13 | B38: 14.2169729 | C38: 13 | J38: 11.9 | K38: 10.88
J39: 12 | K39: 10.97
J40: 12.1 | K40: 11.06
J41: 12.2 | K41: 11.16
J42: 12.3 | K42: 11.25
J43: 12.4 | K43: 11.34
J44: 12.5 | K44: 11.43
J45: 12.6 | K45: 11.52
J46: 12.7 | K46: 11.61
J47: 12.8 | K47: 11.7
J48: 12.9 | K48: 11.8
J49: 13 | K49: 11.89
J50: 13.1 | K50: 11.98
J51: 13.2 | K51: 12.07
J52: 13.3 | K52: 12.16
J53: 13.4 | K53: 12.25
J54: 13.5 | K54: 12.34
J55: 13.6 | K55: 12.44
J56: 13.7 | K56: 12.53
J57: 13.8 | K57: 12.62
J58: 13.9 | K58: 12.71
J59: 14 | K59: 12.8

Sheet Sheet3
B1: AREA | C1: EVENT | D1: ACHIEV EMENT | E1: LINK | F1: IN JANUS | G1: DAY | H1: MON | I1: YR | J1: DAY | K1: MON | L1: YR | M1: FROM | N1: TO | O1: ACYR | P1: HOW LONG | Q1: TITLE | R1: FIRSTNAME | S1: LASTNAME | T1: RE HOUSE | U1: KNOWN AS | V1: STATUS | W1: WHAT | X1: POSITION | Y1: REPLACED | Z1: REPLACED BY | AA1: SUBJECT(S) | AB1: INTERESTS | AC1: ACTIVITIES | AD1: BEFORE WHS | AE1: AFTER WHS | AF1: COMMENTS | AG1: IMAGE
A2: 1 | B2: M&D | C2: Bach's "Christmas Oratorio" was performed | E2: GO | F2: 1967 | G2: 16 | H2: 12 | I2: 1967 | O2: 6768
A3: 2 | B3: M&D | C3: "SWANSONG": a recital by the 3rd YR Vth | E3: GO | F3: 1967 | G3: 9 | H3: 12 | I3: 1967 | O3: 6768
A4: 3 | B4: M&D | C4: "The Strong Are Lonely" performed on 9/10/11 December. | E4: GO | F4: 1966 | G4: 9 | H4: 12 | I4: 1966 | O4: 6667
A5: 4 | B5: staffing | C5: Mr McNichol arrived to teach Biology for 1 term. | E5: GO | F5: 1966 | H5: 9 | I5: 1966 | O5: 6667 | Q5: Mr | R5: UNKNOWN | S5: McNichol | V5: T | W5: started | X5: teacher | AA5: Biology | AD5: University of Adelaide
A6: 5 | B6: staffing | C6: Mr Chilton left after replacing Commander Wiseman for 6 months - Mrs Mayes replaced him as Tuckshop Manageress | E6: GO | F6: 1966 | H6: 8 | I6: 1966 | O6: 6566 | Q6: Mr | R6: J. L. | S6: Chilton | V6: DS | W6: left WHS | X6: Bursar | Z6: Mrs Mayes | AE6: Bursar at Sentral Elec. Board at Horsley Towers in Surrey
A7: 6 | B7: wedding | C7: Angela Bailey married Ian Beardwell in Woolverstone | E7: GO | F7: 1967 | G7: 22 | H7: 7 | I7: 1967 | O7: 6667
A8: 7 | B8: M&D | C8: "It Should Happen To A Dog" and "Dwarfs" (sic) - part of "The Woolverstone Festival" | E8: GO | F8: 1967 | H8: 7 | I8: 1967 | O8: 6768
A9: 8 | B9: M&D | C9: school play: "The Strong are Lonely" | E9: GO | F9: 1967 | H9: 7 | I9: 1967 | O9: 6768
A10: 9 | B10: M&D | C10: "See How They Run" - a staff drama was performed | E10: GO | F10: 1967 | H10: 7 | I10: 1967 | O10: 6768
A11: 10 | B11: M&D | C11: Halls House play "Noah" was performed | E11: GO | F11: 1967 | H11: 7 | I11: 1967 | O11: 6768
A12: 11 | B12: M&D | C12: "The Government Inspector" was performed. | E12: GO | F12: 1966 | H12: 7 | I12: 1966 | O12: 6566
A13: 12 | B13: M&D | C13: "I Killed The Count" was performed by 3rd & 4th forms. | E13: GO | F13: 1966 | H13: 7 | I13: 1966 | O13: 6566
A14: 13 | B14: death | C14: Commander Wiseman died | E14: GO | F14: 1966 | G14: 4 | H14: 6 | I14: 1966 | O14: 6566 | Q14: Commander | R14: John | S14: Wiseman | V14: DS | W14: died | X14: Bursar | AD14: came with LNS in 1947 when it transferred from Maiden head
A15: 14 | B15: travel | C15: Easter school trip to France (Poole & Ramsay) | E15: GO | F15: 1966 | H15: 4 | I15: 1966 | O15: 6566
A16: 15 | B16: travel | C16: Expedition to Spain | E16: GO | F16: 1967 | G16: 22 | H16: 3 | I16: 1967 | O16: 6667
A17: 16 | B17: M&D | C17: "Let's make an Opera" was performed | E17: GO | F17: 1967 | G17: 17 | H17: 3 | I17: 1967 | O17: 6667
A18: 17 | B18: staffing | C18: Michael Watts left after being Dep. Head. since 1973. | E18: GO | F18: 1968 | H18: 3 | I18: 1968 | O18: 6768 | Q18: Mr | R18: Michael | S18: Watts | V18: T | W18: left WHS | X18: Deputy-Head | Y18: Mr Hudson | AE18: Grammar Sch. At Yarm, West Riding
A19: 18 | B19: premises | C19: Lots of improvements to the library. | E19: GO | F19: 1966 | I19: 1966 | O19: 6566
A20: 19 | B20: sport | C20: The 1st XV played The Old Woolverstonians. Losing 9-12 | F20: 1967 | G20: 16 | H20: 12 | I20: 1967 | O20: 6768
A21: 20 | B21: M&D | C21: school play | F21: 1968 | G21: 13 | H21: 12 | I21: 1968
A22: 21 | B22: staffing | C22: Mr A. Allchin left WHS as teacher of Geog. & Maths | F22: 1967 | H22: 12 | I22: 1966 | O22: 6667 | P22: 6 years | Q22: Mr | R22: A. | S22: Allchin | U22: Chinny | V22: T | W22: left WHS | X22: teacher | AA22: Geog / Maths | AC22: - very active in outdoor activities, esp. sailing - i/c Sea Cadets before disbandment - helped with DofE | AE22: becomes Warden at Tynemouth Field Centre at High Borras near Lake Windermere
A23: 22 | B23: staffing | C23: Mr H. C. A. Thomas left as Housemaster of Corners | F23: 1967 | H23: 12 | I23: 1966 | O23: 6667 | P23: 8 years | Q23: Mr | R23: H.C.A. | S23: Thomas | T23: Corners | U23: Tooms | V23: T | W23: left WHS | X23: Housemaster | AA23: Chemistry | AE23: moved into house near end Mannings Lane
A24: 23 | B24: staffing | C24: Mr N. McNichol left WHS as Teacher of Biology | F24: 1967 | H24: 12 | I24: 1966 | O24: 6667 | Q24: Mr | R24: N. | S24: McNichol | T24: Berners | V24: T | W24: left WHS | X24: Teacher | Z24: C. J. Hawes | AA24: Biology | AC24: helped in Berners | AE24: went to boarding school in Switzerland
A25: 24 | B25: staffing | C25: Peter Bond left after 2 years teaching English | F25: 1968 | H25: 12 | I25: 1967 | O25: 6768 | Q25: Mr | R25: Peter | S25: Bond | V25: T | W25: left WHS | X25: English Teacher | AC25: badminton & school drama | AE25: Carisbrooke G.S. I.O.W.
A26: 25 | B26: staffing | C26: Peter Bond left Johnstons as Asst. Housemaster | F26: 1968 | H26: 12 | I26: 1967 | O26: 6768 | Q26: Mr | R26: Peter | S26: Bond | T26: Johnstons | V26: T | W26: left WHS | X26: Asst. Housemaster
A27: 26 | B27: premises | C27: new teaching block almost complete - between metalwork rooms and Sports Store | F27: 1967 | H27: 12 | I27: 1967 | O27: 6768
A28: 27 | B28: staffing | C28: Sister K. Hamon left WHS after 9 years service | F28: 1966 | H28: 12 | I28: 1965 | O28: 6566 | Q28: Sister | R28: K. | S28: Hamon | V28: DS | W28: retired | X28: Sister in SB | AE28: moved to Jersey
A29: 28 | B29: staffing | C29: Mr P. Rees left | F29: 1966 | H29: 12 | I29: 1965 | O29: 6566 | Q29: Mr | R29: P. | S29: Rees | V29: T | W29: left WHS | X29: teacher | AA29: English
A30: 29 | B30: staffing | C30: Mr Claude Giletti started WHS as French Assistant | F30: 1967 | H30: 10 | I30: 1967 | O30: 6768 | P30: 1 year | Q30: Mr | R30: Claude | S30: Giletti | V30: T | W30: started WHS | X30: Language Assistant | AA30: French | AD30: Uni Lyon/ Psychology
A31: 30 | B31: staffing | C31: Miss Frances Smith started as tuckshop Manageress | F31: 1967 | H31: 10 | I31: 1967 | O31: 6768 | Q31: Miss | R31: Frances | S31: Smith | V31: DS | W31: started | X31: tuckshop Manageress | Y31: Mr Mann
A32: 31 | B32: staffing | C32: Mr UNKNOWN Mann started as Chief Asst. To Mr Cockayne | F32: 1967 | H32: 10 | I32: 1967 | O32: 6768 | Q32: Mr | R32: UNKNOWN | S32: Mann | V32: DS | W32: started | X32: Chief Asst. To Mr Cockayne
A33: 32 | B33: staffing | C33: Mr E.E. Gower started as Corners Gardener | F33: 1967 | H33: 10 | I33: 1967 | O33: 6768 | Q33: Mr | R33: E.E. | S33: Gower | T33: Corners | V33: DS | W33: started | X33: Corners Gardener
A34: 33 | B34: honour | C34: Paul Finch named Head Boy | D34: 1 | F34: 1967 | H34: 9 | I34: 1967 | O34: 6768 | P34: 1 year | Q34: Mr | R34: Paul | S34: Finch | V34: P | W34: appointed | X34: Head Boy | Y34: Peter Lover | AF34: also Head of Hansons House
A35: 34 | B35: staffing | C35: Mr Francis Gruie started WHS as French Assistant | F35: 1967 | H35: 9 | I35: 1966 | O35: 6667 | P35: 1 year | Q35: Mr | R35: Francis | S35: Gruie | V35: T | W35: started WHS | X35: Language Assistant | AA35: French
A36: 35 | B36: staffing | C36: Mr Herman Linder started WHS as German Assistant | F36: 1967 | H36: 9 | I36: 1966 | O36: 6667 | P36: 1 year | Q36: Mr | R36: Herman | S36: Linder | V36: T | W36: started WHS | X36: Language Assistant | AA36: German | AD36: Uni Munich/English & Latin
A37: 36 | B37: staffing | C37: Gunter Feneis arrived as German Assistant. | F37: 1968 | H37: 9 | I37: 1968 | O37: 6869 | Q37: Mr | R37: Gunter | S37: Watts | V37: T | W37: arrived | X37: German Asst.
A38: 37 | B38: staffing | C38: Gerard Labarre arrived as French Assistant. | F38: 1968 | H38: 9 | I38: 1968 | O38: 6869 | Q38: Mr | R38: Gerard | S38: Watts | V38: T | W38: arrived | X38: French Asst.
A39: 38 | B39: honour | C39: Henry Gibbons appointed Head Boy | D39: 1 | F39: 1968 | H39: 9 | I39: 1968 | O39: 6869 | Q39: Mr | R39: Henry | S39: Gibons | V39: B | W39: appointed | X39: Head Boy
A40: 39 | B40: staffing | C40: Malcolm Pool was Deputy-Head for one term. | F40: 1968 | H40: 9 | I40: 1968 | O40: 6869 | Q40: Mr | R40: Malcolm A. R. | S40: Poole | V40: T | W40: started | X40: Temp. Deputy-Head | Y40: Michael Watts | Z40: Peter Hudson
A41: 40 | B41: staffing | C41: The new Bursar arrived: Norman Cockayne. | F41: 1966 | H41: 9 | I41: 1966 | O41: 6566 | Q41: Mr | R41: Norman | S41: Cockayne | V41: DS | W41: arrived | X41: Bursar | Y41: Commander Wiseman | AD41: Admin Officer with ILEA in Countxy Hall - previously with LCC Ed. Service since 1936
A42: 41 | B42: honour | C42: Peter Lover appointed Head Boy. | D42: 1 | F42: 1966 | H42: 9 | I42: 1966 | O42: 6566 | Q42: Mr | R42: Peter | S42: Lover | V42: B | W42: appointed | X42: Head Boy | Y42: V. Lockett
A43: 42 | B43: staffing | C43: Sister M. D. Godwin appointed i/s Sick Bay. | F43: 1966 | H43: 9 | I43: 1966 | O43: 6566 | Q43: Miss | R43: S. D. | S43: Godwin | V43: DS | W43: started | X43: i/c Sick Bay
A44: 43 | B44: staffing | C44: Sister M. D. Godwin arrived as nurse. | F44: 1966 | H44: 9 | I44: 1965 | O44: 6566 | Q44: Miss | R44: S. D. | S44: Godwin | V44: DS | W44: started | X44: nurse
A45: 44 | B45: wedding | C45: Glenys Talbot married Glyn Pettit in Shropshire | F45: 1967 | G45: 29 | H45: 7 | I45: 1967 | O45: 6667
A46: 45 | B46: official | C46: Speech Day - M. Lockett gave vote of thanks | F46: 1966 | G46: 16 | H46: 7 | I46: 1966 | O46: 6566
A47: 46 | B47: official | C47: Speech Day - Mrs Chaplin presided - Paul Lover made a speech | F47: 1967 | G47: 15 | H47: 7 | I47: 1967 | O47: 6667
A48: 47 | B48: staffing | C48: Mrs UNKNOWN Wells started as Assistant Bursar to Miss Shaw | F48: 1967 | H48: 7 | I48: 1967 | O48: 6768 | Q48: Mrs | R48: UNKNOWN | S48: Wells | V48: DS | W48: started | X48: Assistant Bursar to Miss Shaw | Y48: Glenys Talbot
A49: 48 | B49: staffing | C49: Mr Francis Gruie left WHS as French Language Assistant | F49: 1967 | H49: 7 | I49: 1967 | O49: 6566 | P49: 1 year | Q49: Mr | R49: Francis | S49: Gruie | V49: T | W49: left WHS | X49: Language Assistant | Z49: Claude Giletti | AA49: French
A50: 49 | B50: staffing | C50: Ms Glenys Talbot left as Asst. Dom. Bursar | F50: 1967 | H50: 7 | I50: 1967 | O50: 6667 | P50: 1 year | Q50: Ms | R50: Glenys | S50: Talbot | V50: DS | W50: left WHS | X50: Asst. Dom. Bursar | AF50: got married July 29th 1967 to Mr Glyn Pettit
A51: 50 | B51: staffing | C51: Mr Herman Linder left WHS as German Assistant | F51: 1967 | H51: 7 | I51: 1967 | O51: 6667 | P51: 1 year | Q51: Mr | R51: Herman | S51: Linder | V51: T | W51: left WHS | X51: Language Assistant
A52: 51 | B52: M&D | C52: school play: "Chips With Everything" | F52: 1967 | H52: 7 | I52: 1967 | O52: 6768
A53: 52 | B53: staffing | C53: Mr Anton Presisegger left WHS as German Assistant | F53: 1967 | H53: 7 | I53: 1966 | O53: 6667 | P53: 1 year | Q53: Mr | R53: Anton | S53: Presisegger | V53: T | W53: left WHS | X53: Language Assistant | Z53: Hermann Linder | AA53: German | AE53: returned to Vienna
A54: 53 | B54: staffing | C54: Hermann Linder left as German Assistant. | F54: 1968 | H54: 7 | I54: 1967 | O54: 6768 | Q54: Mr | R54: Herman | S54: Linder | V54: T | W54: left WHS | X54: German Asst.
A55: 54 | B55: staffing | C55: Claude Giletti left as French Assistant. | F55: 1968 | H55: 7 | I55: 1968 | O55: 6768 | Q55: Mr | R55: Claude | S55: Giletti | V55: T | W55: left WHS | X55: French Asst.
A56: 55 | B56: academic | C56: Richard D. Davies awarded Open Exhibition to St Johns College, Cambridge | D56: 1 | F56: 1968 | H56: 7 | I56: 68 | O56: 6768 | Q56: Mr | R56: Richard | S56: Davies | V56: B | W56: Open Ex.
A57: 56 | B57: wedding | C57: Joan Meeds married Peter Bond in Ipswich | F57: 1967 | H57: 7 | I57: 1967 | O57: 6667
A58: 57 | B58: staffing | C58: Hans Buchanan, the German Assistant, left. | F58: 1966 | H58: 7 | I58: 1966 | O58: 6566 | Q58: Mr | R58: Hans | S58: Buchmann | V58: T | W58: left WHS | X58: Language Assistant | AA58: German | AE58: returned to Switzerland
A59: 58 | B59: academic | C59: Peter McNair won Open Exhibition in History to Selwyn College, Cambridge. | D59: 1 | F59: 1966 | H59: 7 | I59: 1966 | O59: 6566 | Q59: Mr | R59: Peter | S59: McNair | V59: B | W59: Open Ex.
A60: 59 | B60: academic | C60: Geraint L. Howell won Open Exhibition in History to Jesus College, Oxford. | D60: 1 | F60: 1966 | H60: 7 | I60: 1966 | O60: 6566 | Q60: Mr | R60: Geraint L. | S60: Howell | V60: B | W60: Open Ex.
A61: 60 | B61: premises | C61: "The Holly" acquired by school - Bursar lives on ground floor - top floor to be converted into 2 flats. | F61: 1966 | H61: 7 | I61: 1966 | O61: 6667
A62: 61 | B62: sport | C62: M. Lockett won the Senior X-Country by 49s in 24m17s. | D62: 1 | F62: 1966 | H62: 7 | I62: 1966 | O62: 6566 | V62: B
A63: 62 | B63: birth | C63: Mr Mrs Turner had son Robert | F63: 1968 | G63: 13 | H63: 6 | I63: 1968
A64: 63 | B64: birth | C64: Mr Mrs Hutchinson had son Richard Alexander Jonathan | F64: 1968 | G64: 3 | H64: 5 | I64: 1968
A65: 64 | B65: staffing | C65: Miss J. Meeds came as Asst. Sister in SB. | F65: 1966 | H65: 5 | I65: 1966 | O65: 6667 | Q65: Miss | R65: J. | S65: Meeds | V65: DS | W65: started | X65: Sister | AD65: Avery Hill Tchr. Training Coll.
A66: 65 | B66: staffing | C66: C. Westlake spent 1 term teaching History | F66: 1968 | H66: 4 | I66: 1968 | O66: 6768 | P66: 1 term | Q66: Mr | R66: C. | S66: Westlake | V66: T | W66: left WHS | X66: Teacher | AA66: History | AD66: P.G.C.E. At Cambridge | AE66: Queen Mary's G.S. Walsall, Brian Middlebrook's old school
A67: 66 | B67: birth | C67: Mr Mrs Watts had son Joseph | F67: 1968 | H67: 4 | I67: 1968
A68: 67 | B68: staffing | C68: Mr J. McKenzie left after teaching Art for 2 years and serving as Orwell Asst. Housemaster | F68: 1966 | H68: 4 | I68: 1966 | O68: 6566 | Q68: Mr | R68: J. | S68: McKenzie | V68: T | W68: left WHS | X68: teacher | AA68: Art | AC68: worked in Printing Society and on stage sets | AE68: a school in New Zealand
A69: 68 | B69: staffing | C69: Hans Buchanan, the German Assistant, left. | F69: 1966 | H69: 4 | I69: 1966 | O69: 6566 | Q69: Mr | R69: UNKNOWN | S69: Scott | V69: T | W69: left WHS | X69: Asst. Domestic Bursar
A70: 69 | B70: staffing | C70: Miss G. Talbot arrived as Asst, Bursar. | F70: 1966 | H70: 4 | I70: 1966 | O70: 6566 | Q70: Miss | R70: G. | S70: Talbot | V70: DS | W70: started | X70: Asst. Bursar
A71: 70 | B71: staffing | C71: Mike Coulter arrived to take over Art Department. | F71: 1966 | H71: 4 | I71: 1966 | O71: 6667 | Q71: Mr | R71: Mike J. | S71: Coulter | V71: T | W71: started | X71: Head of Dept. | Y71: Ernie Green | AA71: Art | AD71: Rising Brook School in Stafford
A72: 71 | B72: staffing | C72: Mike Coulter appointed Asst Housemaster of Halls. | F72: 1966 | H72: 4 | I72: 1966 | O72: 6667 | Q72: Mr | R72: Mike J. | S72: Coulter | T72: Halls | V72: T | W72: started | X72: Asst. Housemaster Halls
A73: 72 | B73: staffing | C73: Mr S. S. Tong came as Student Teacher for Easter term. | F73: 1966 | H73: 4 | I73: 1966 | O73: 6566 | Q73: Mr | R73: S. S. | S73: Tong | V73: ST | W73: started | X73: student tchr. | AA73: English
A74: 73 | B74: staffing | C74: Mr C. Jones came as Student Teacher for Easter term. | F74: 1966 | H74: 4 | I74: 1966 | O74: 6566 | Q74: Mr | R74: C. | S74: Jones | V74: ST | W74: started | X74: student tchr. | AA74: Maths | AE74: teaching in Oundle
A75: 74 | B75: staffing | C75: Mr R. Elms came as Student Teacher for Easter term. | F75: 1966 | H75: 4 | I75: 1966 | O75: 6566 | Q75: Mr | R75: R. | S75: Elms | V75: ST | W75: started | X75: student tchr. | Y75: Mr Cox | AA75: Physics | AE75: V.S.O. In Nigeria
A76: 75 | B76: Old Boys | C76: Old Boys' Association Annual General Meeting | F76: 1967 | G76: 22 | H76: 3 | I76: 1967 | O76: 6667
A77: 76 | B77: event | C77: Virus "B" filled Sick Bay and caused cancellation of the Stowe Exchange. | F77: 1966 | H77: 2 | I77: 1966 | O77: 6566
A78: 77 | B78: birth | C78: Mr Mrs Mann had daughter Nicola Jane | F78: 1968 | G78: 30 | H78: 1 | I78: 1968
A79: 78 | B79: staffing | C79: Mr R.W. Barker started WHS as Housemaster | F79: 1967 | H79: 1 | I79: 1967 | O79: 6768 | Q79: Mr | R79: R.W. | S79: Barker | T79: Corners | V79: T | W79: started WHS | X79: Housemaster | Y79: H.C.A. Thomas | AA79: Maths
A80: 79 | B80: staffing | C80: Mr Colin J. Hawes started WHS as Teacher of Biology | F80: 1967 | H80: 1 | I80: 1967 | O80: 6667 | Q80: Mr | R80: Colin J. | S80: Hawes | V80: T | W80: started WHS | X80: Teacher | Y80: N. McNichol | AA80: Biology | AD80: Northgate G.S./BSc. London Univ. Year at Exeter Univ. Researching Plant Pathology
A81: 80 | B81: staffing | C81: Mr Colin J. Hawes started as Asst. Housemaster of Berners | F81: 1967 | H81: 1 | I81: 1967 | O81: 6667 | Q81: Mr | R81: Colin J. | S81: Hawes | T81: Berners | V81: T | W81: started | X81: Asst. Housemaster | AA81: Biology | AD81: Northgate G.S./BSc. London Univ. Year at Exeter Univ. Researching Plant Pathology
A82: 81 | B82: staffing | C82: Mr R.P.D. Hutchinson started WHS as Teacher | F82: 1967 | H82: 1 | I82: 1967 | O82: 6667 | Q82: Mr | R82: R.P.D. | S82: Hutchinson | V82: T | W82: started WHS | X82: Teacher | Y82: Mr Allchin | AA82: Geography | AD82: Newcastle Uni/Crosse & Blackwell/2.5 yrs teaching in rural Tanzania
A83: 82 | B83: staffing | C83: Mr R.W Barker replaced Mr Thomas as Housemaster of Corners | F83: 1967 | H83: 1 | I83: 1967 | O83: 6667 | Q83: Mr | R83: R.W | S83: Barker | T83: Corners | V83: T | W83: started | X83: Housemaster | Y83: H.C.A. Thomas
A84: 83 | B84: staffing | C84: Mr UNKNOWN Jones started as student teacher of Mod Langs | F84: 1967 | H84: 1 | I84: 1967 | O84: 6667 | P84: 1 term | Q84: Mr | R84: UNKNOWN | S84: Jones | V84: T | W84: started | X84: Student Teacher | AA84: French & German | AD84: from Oxford | AE84: teaching in France
A85: 84 | B85: staffing | C85: Student Mr UNKNOWN Strickland started as Maths Teacher | F85: 1967 | H85: 1 | I85: 1967 | O85: 6667 | P85: 1 term | Q85: Mr | R85: UNKNOWN | S85: Strickland | V85: T | W85: started | X85: Student Teacher | AA85: Maths | AD85: from Cambridge | AE85: Wycliffe College Worcs
A86: 85 | B86: staffing | C86: Mike J. Coulter replaced Brian Middlebrook as Housemaster of Halls | F86: 1967 | H86: 1 | I86: 1967 | O86: 6768 | P86: 1 year | Q86: Mr | R86: Mike J. | S86: Coulter | T86: Halls | V86: T | W86: started | X86: Housemaster | Y86: Brian Middlebrook
A87: 86 | B87: staffing | C87: Peter Hudson arrived as Deputy-Head | F87: 1968 | H87: 1 | I87: 1969 | O87: 6869 | Q87: Mr | R87: Peter | S87: Hudson | V87: T | W87: arrived | X87: Deputy-Head | Y87: Malcolm Poole | AD87: Denstone College
A88: 87 | B88: staffing | C88: Rev. T Johnstone arrived as "Asst. English Master" for 1 term | F88: 1968 | H88: 1 | I88: 1968 | O88: 6768 | P88: 1 term | Q88: Mr | R88: T. | S88: Johnstone | V88: T | W88: arrived | X88: Teacher | AA88: English | AF88: from Buenos Aires - polyglot & expert on Baron Munchhausen
A89: 88 | B89: staffing | C89: Peter Bond arrived to teach English. | F89: 1966 | H89: 1 | I89: 1966 | O89: 6566 | Q89: Mr | R89: Peter D. | S89: Bond | V89: T | W89: started | X89: teacher | AA89: English | AD89: Cambridge, Army & 5 yrs teaching in Malaya & then at Sidcup G.S.
A90: 89 | B90: staffing | C90: Mr Brian Middlebrook on sabbatical doing Educational Psychology at Cambridge | F90: 1967 | I90: 1967 | O90: 6768 | P90: 1 year | Q90: Mr | R90: Brian | S90: Middlebrook | T90: Halls | U90: Stringy | V90: T | W90: on leave | Z90: Mike Coulter | AA90: Latin | AF90: course on Educational Psychology at Cambridge
A91: 90 | B91: honour | C91: Paul Finch awarded Open Scholarship in History to Selwyn College Cambridge | D91: 1 | F91: 1968 | R91: Paul | S91: Finch | W91: Open Scholarship
A92: 91 | B92: honour | C92: G. Egan won Travelling Scholarship to France | D92: 1 | F92: 1968
A93: 92 | B93: honour | C93: R.R. Austin awarded R.A.F. Flying Scholarship | D93: 1 | F93: 1968
A94: 93 | B94: sport | C94: Nusrat Nazeer scored 100 n.n. V King's Macclesfield & took 7 wickets for 18 runs v Norwich School | F94: 1967 | I94: 1967 | O94: 6667
A95: 94 | B95: M&D | C95: 150 boys now learn and play at least one musical instrument | F95: 1967 | I95: 1967 | O95: 6768
A96: 95 | B96: premises | C96: alterations to "The Holly" completed - occupied by Miss K-Shaw & Miss Smith | F96: 1967 | I96: 1967 | O96: 6768
A97: 96 | B97: sport | C97: The 1st XV beat Colchester 22-8 and lost NO matches against schools; only drawing 3-3 with Wymondham | D97: 1 | F97: 1967 | I97: 1967 | O97: 6667
A98: 97 | B98: premises | C98: The swimming-pool now has a cover! | F98: 1967 | I98: 1967 | O98: 6667
A99: 98 | B99: event | C99: The WHS-STOWE Exchange took place | F99: 1967 | I99: 1967 | O99: 6667
A100: 99 | B100: event | C100: The parents Ass. Replaced one of the Enterprise boats and paid for the paving round the swimming-pool | F100: 1966 | I100: 1966 | O100: 6566
A101: 100 | B101: sport | C101: Phil Davies represented Suffolk in All-England Athletics Champ. for 3rd time. | D101: 1 | F101: 1966 | I101: 1966 | O101: 6566 | R101: Philip | S101: Davies | T101: Berners | U101: Ugg | V101: B | W101: All-England
A102: 101 | B102: staffing | C102: Mr Farthing left as Corners Gardener after a series of illnesses. | F102: 1966 | I102: 1966 | O102: 6566 | V102: DS | X102: Gardener | Z102: Mr Gower
A103: 102 | B103: honour | C103: Peter Lover won the Rowland Memorial Prize. | D103: 1 | F103: 1966 | I103: 1966 | O103: 6566 | Q103: Mr | R103: Peter | S103: Lover | V103: B | W103: won prize | X103: Head Boy
A104: 103 | B104: honour | C104: David Pearn qualified for V.S.O. In Zambia. | D104: 1 | F104: 1966 | I104: 1966 | O104: 6566 | R104: David | S104: Pearn | T104: Halls | V104: B
A105: 104 | B105: staffing | C105: Peter Sadler got married. | F105: 1966 | I105: 1966 | O105: 6566 | R105: Peter | S105: Sadler | T105: Berners | V105: T
A106: 105 | B106: sport | C106: Loch Trimminglam and Goodman awarded athletics colours, very unusual for IVth formers. | D106: 1 | F106: 1966 | I106: 1966 | O106: 6566 | V106: B
A107: 106 | B107: event | C107: Leslie Woolford visited WHS to give a talk on history of WHS. | F107: 1966 | I107: 1966 | O107: 6566 | R107: Leslie | S107: Woolford | V107: FT
A108: 107 | B108: sport | C108: Only ONE MATCH was lost to a school by the top SIX RUGBY TEAMS. | D108: 1 | F108: 1966 | I108: 1966 | O108: 6566
A109: 108 | B109: sport | C109: Phil Davies won the 100 yards in 10.4 seconds. | D109: 1 | F109: 1966 | I109: 1966 | O109: 6566 | V109: B
A110: 109 | B110: M&D | C110: "The St John Passion" was performed. | F110: 1966 | I110: 1966 | O110: 6566
A111: 110 | B111: premises | C111: the new science block was completed | F111: 1968 | H111: 9 | I111: 1968 | O111: 6869
A112: 111 | B112: premises | C112: the Art Room was extended | F112: 1968 | H112: 9 | I112: 1968 | O112: 6869
A113: 112 | B113: premises | C113: Old Staffroom given up for Library extension - staff now using two rooms in former Deputy-Head's house | F113: 1968 | H113: 9 | I113: 1968 | O113: 6869
A114: 113 | B114: official | C114: Speech Day | F114: 1968 | G114: 13 | H114: 7 | I114: 1968 | O114: 6768
A115: 114 | B115: official | C115: Mrs A Forbes-Cockell became new Chairman of Governors | F115: 1968 | O115: 6869 | W115: appointed
A116: 115 | B116: birth | C116: Mr Mrs Clayton had son Roderick Edward | F116: 1968 | G116: 18 | H116: 9 | I116: 1968 | O116: 6869
A117: 116 | B117: birth | C117: Mr Mrs Sadler had daughter Tanja | F117: 1968 | G117: 7 | H117: 10 | I117: 1968 | O117: 6869
A118: 117 | B118: sport | C118: John Martin represented Suffolk in the All-England Meeting | D118: 1 | F118: 1968 | H118: 7 | I118: 1968 | O118: 6768 | R118: John | S118: Martin
A119: 118 | B119: sport | C119: Orwell won the inter-house athletics competition for 5th successive year. | D119: 1 | F119: 1968 | H119: 7 | I119: 1968 | O119: 6768 | W119: left WHS
A120: 119 | B120: boys | C120: Music legend Richard Davis left this year | D120: 1 | F120: 1968 | H120: 7 | I120: 1968 | O120: 6768 | R120: Richard | S120: Davis | T120: Orwell | W120: left WHS
A121: 120 | B121: M&D | C121: "Crime and Punishment" was performed | E121: GO | F121: 1968 | H121: 7 | I121: 1968 | O121: 6768 | AF121: assumed July - no date found
A122: 121 | B122: M&D | C122: "Journey's End" was performed | E122: GO | F122: 1968 | H122: 7 | I122: 1968 | O122: 6768
A123: 122 | B123: travel | C123: School trip to Austria led by Mr Waters and Mr Coulter | F123: 1968 | H123: 7 | I123: 1968 | O123: 6768
A124: 123 | B124: honour | C124: Barry Clark awarded Distinction in Teaching Practice at College of St. Mark & St. John | D124: 1 | F124: 1968 | I124: 1968 | O124: 6768
A125: 124 | B125: honour | C125: Mark Wing-Davey named Head of Orwell House | D125: 1 | F125: 1966 | I125: 1966 | O125: 6667 | R125: Mark | S125: Wing-Davey | T125: Orwell | V125: HH | W125: appointed | X125: Head of House
A126: 125 | B126: honour | C126: Anthony Pye named Head of Berners House | D126: 1 | F126: 1966 | I126: 1966 | O126: 6667 | R126: Anthony | S126: Pye | T126: Berners | V126: HH | W126: appointed | X126: Head of House
A127: 126 | B127: honour | C127: Peter Lover named Head of Halls House | D127: 1 | F127: 1966 | I127: 1966 | O127: 6667 | R127: Peter | S127: Lover | T127: Halls | V127: HH | W127: appointed | X127: Head of House
A128: 127 | B128: honour | C128: Ian McEwan named Head of Johnstons House | D128: 1 | F128: 1966 | I128: 1966 | O128: 6667 | R128: Ian | S128: McEwan | T128: Johnstons | V128: HH | W128: appointed | X128: Head of House
A129: 128 | B129: honour | C129: Dennis Lingard names Head of Hansons House | D129: 1 | F129: 1966 | I129: 1966 | O129: 6667 | R129: Dennis | S129: Lingard | T129: Hansons | V129: HH | W129: appointed | X129: Head of House
A130: 129 | B130: honour | C130: David G. Neale named Head of Corners House | D130: 1 | F130: 1966 | I130: 1966 | O130: 6667 | R130: David G. | S130: Neale | T130: Corners | V130: HH | W130: appointed | X130: Head of House
A131: 130 | B131: honour | C131: Peter Daish appointed Captain of Cricket | D131: 1 | F131: 1966 | I131: 1966 | O131: 6667 | R131: Peter | S131: Daish | V131: CC | W131: appointed | X131: Cricket Captain
A132: 131 | B132: honour | C132: Peter Jones appointed Captain of Rugby | D132: 1 | F132: 1967 | I132: 1966 | O132: 6667 | R132: Peter | S132: Jones | V132: CR | X132: Cricket Rugby
A133: 132 | B133: M&D | C133: Peter Lover produced Vith form's "Waiting for Godot" | D133: 1 | E133: GO | F133: 1966 | H133: 7 | I133: 1966 | O133: 6566 | Q133: Mr | R133: Peter | S133: Lover | V133: B
A134: 133 | B134: sport | C134: The staff beat the boys in the football match 1-0. | E134: GO | F134: 1966 | H134: 7 | I134: 1966 | O134: 6566
A135: 134 | B135: M&D | C135: "Breaking Point" produced by Upper Vith | E135: GO | F135: 1966 | H135: 7 | I135: 1966 | O135: 6566
A136: 135 | B136: travel | C136: Austria & Germany (Thornbery, Davies & Wild) | E136: GO | F136: 1966 | H136: 8 | I136: 1966 | O136: 6566
A137: 136 | B137: honour | C137: Michael J. Radford named Head of Berners | D137: 1 | F137: 1967 | H137: 9 | I137: 1967 | O137: 6768 | R137: Michael | S137: Radford | T137: Berners | V137: B | W137: appointed | X137: Head of House
A138: 137 | B138: honour | C138: Franklin C. Grigor named Head of Corners | D138: 1 | F138: 1967 | H138: 9 | I138: 1967 | O138: 6768 | R138: Franklin | S138: Grigor | T138: Corners | V138: B | W138: appointed | X138: Head of House
A139: 138 | B139: honour | C139: David E. Howard named Head of Halls | D139: 1 | F139: 1967 | H139: 9 | I139: 1967 | O139: 6768 | R139: David | S139: Howard | T139: Halls | V139: B | W139: appointed | X139: Head of House
A140: 139 | B140: honour | C140: Paul Finch named Head of Hansons | D140: 1 | F140: 1967 | H140: 9 | I140: 1967 | O140: 6768 | R140: Paul | S140: Finch | T140: Hansons | V140: B | W140: appointed | X140: Head of House
A141: 140 | B141: honour | C141: Hugh Templeton named Head of Johnstons | D141: 1 | F141: 1967 | H141: 9 | I141: 1967 | O141: 6768 | R141: Hugh | S141: Templeton | T141: Johnstons | V141: B | W141: appointed | X141: Head of House
A142: 141 | B142: honour | C142: Richard Davies named Head of Orwell | D142: 1 | F142: 1967 | H142: 9 | I142: 1967 | O142: 6768 | R142: Richard | S142: Davies | T142: Orwell | V142: B | W142: appointed | X142: Head of House
A143: 142 | B143: birth | C143: Mr Mrs Waters had daughter Sarah Elizabeth Jane | F143: 1967 | G143: 23 | H143: 5 | I143: 1967 | O143: 6768
A144: 143 | B144: birth | C144: Mr Mrs Hawes had son Jonathan William | F144: 1967 | G144: 15 | H144: 7 | I144: 1967 | O144: 6768
A145: 144 | B145: birth | C145: Mr Mrs Skailes had daughter Charlotte Elizabeth Rosalind | F145: 1967 | G145: 18 | H145: 7 | I145: 1967 | O145: 6768
A146: 145 | B146: honour | C146: Christopher A. Curran named Head of Berners House | D146: 1 | F146: 1968 | H146: 9 | I146: 1968 | O146: 6869 | R146: Christopher | S146: Curran | T146: Berners | V146: HH | W146: appointed | X146: Head of House
A147: 146 | B147: honour | C147: Guy R. Austin named head of Corners House | D147: 1 | F147: 1968 | H147: 9 | I147: 1968 | O147: 6869 | R147: Guy | S147: Austin | T147: Corners | V147: HH | W147: appointed | X147: Head of House
A148: 147 | B148: honour | C148: Michael C. Richards named head of Halls House | D148: 1 | F148: 1968 | H148: 9 | I148: 1968 | O148: 6869 | R148: Michael | S148: Richards | T148: Halls | V148: HH | W148: appointed | X148: Head of House
A149: 148 | B149: honour | C149: Henry Gibbons named head of Hansons House | D149: 1 | F149: 1968 | H149: 9 | I149: 1968 | O149: 6869 | R149: Henry | S149: Gibbons | T149: Hansons | V149: HH | W149: appointed | X149: Head of House
A150: 149 | B150: honour | C150: Anthony Mitton named head of Johnston's House | D150: 1 | F150: 1968 | H150: 9 | I150: 1968 | O150: 6869 | R150: Anthony | S150: Mitton | T150: Johnstons | V150: HH | W150: appointed | X150: Head of House
A151: 150 | B151: honour | C151: Charles D. Knight named head of Orwell House | D151: 1 | F151: 1968 | H151: 9 | I151: 1968 | O151: 6869 | R151: Charles | S151: Kinght | T151: Orwell | V151: HH | W151: appointed | X151: Head of House
A152: 151 | B152: boys | C152: Music legend Neil Cloake left this year | D152: 1 | F152: 1968 | H152: 7 | I152: 1968 | O152: 6768 | R152: Neil | S152: Cloake | T152: Orwell | W152: left WHS
A153: 152 | B153: staffing | C153: Brian Middlebrook left after 11 years at WHS. | F153: 1969 | H153: 7 | I153: 1968 | P153: 11 yrs | R153: Brian | S153: Middlebrook | U153: Stringy | V153: T | W153: left WHS | AE153: Lecturer in Education Sunderland Coll. Of Ed.
A154: 153 | B154: staffing | C154: B. S. Gorman left after teaching history and helping with games for 2 terms. | F154: 1969 | H154: 7 | I154: 1968 | P154: 2 terms | R154: B. S. | S154: Gorman | V154: T | W154: left WHS | AA154: history | AE154: went to Shawnigan Lake, Vancouver where Peter Josselyn taught.
A155: 154 | B155: staffing | C155: G. R. Ramm left after teaching woodwork. | F155: 1969 | H155: 7 | I155: 1968 | R155: G. R. | S155: Ramm | V155: T | W155: left WHS | AA155: woodwork
A156: 155 | B156: staffing | C156: A. F. Clayton left after spending summer term teaching history, classics and coaching U14s XI. | F156: 1969 | H156: 7 | I156: 1968 | P156: 1 term | R156: A. F. | S156: Clayton | V156: T | W156: left WHS | AE156: Aldenham School
A157: 156 | B157: staffing | C157: Neil Clayton on sabbatical reading for MA in Linguistics at Uni. Of Essex. | F157: 1969 | H157: 9 | I157: 1969 | P157: 1 year | R157: Neil | S157: Clayton | V157: T | W157: sabbatical
A158: 157 | B158: staffing | C158: Mrs M. Burt left WHS. | F158: 1969 | H158: 7 | I158: 1969 | Q158: Mrs | R158: M | S158: Burt | V158: DS | W158: left WHS
A159: 158 | B159: staffing | C159: Mr A. Fuller left WHS. | F159: 1969 | H159: 7 | I159: 1969 | Q159: Mr | R159: A. | S159: Fuller | V159: DS | W159: left WHS
A160: 159 | B160: staffing | C160: Miss Lyn Whyte left WHS. | F160: 1969 | H160: 7 | I160: 1969 | Q160: Miss | R160: Lyn | S160: Whyte | V160: DS | W160: left WHS
A161: 160 | B161: staffing | C161: Sister Cocks left WHS. | F161: 1969 | H161: 7 | I161: 1969 | Q161: Sister | S161: Cocks | V161: DS | W161: left WHS | X161: sister
A162: 161 | B162: staffing | C162: Gunter Feneis left as German Assistant. | F162: 1969 | H162: 7 | I162: 1969 | P162: 1 year | Q162: Mr | R162: Gunter | S162: Feneis | V162: GLA | W162: left WHS
A163: 162 | B163: staffing | C163: Gerard Labarre left as French Assistant. | F163: 1969 | H163: 7 | I163: 1969 | P163: 1 year | Q163: Mr | R163: Gerard | S163: Labarre | V163: FLA | W163: left WHS
A164: 163 | B164: staffing | C164: Mrs F. A. Malden left as Johnston's Housematron. | F164: 1969 | H164: 7 | I164: 1969 | P164: 8 years | Q164: Mrs | R164: F. A. | S164: Malden | V164: HSEM | W164: left WHS
A165: 164 | B165: staffing | C165: Mr David Hudson started as Deputy-Headmaster | F165: 1969 | H165: 1 | I165: 1969 | Q165: Mr | R165: David | S165: Hudson | V165: DH | W165: started WHS | X165: Deputy-Head | AA165: Geography | AB165: mountaineering/music | AD165: teaching in USA & Canada - working in timber business in London - teaching at Denstone College
A166: 165 | B166: staffing | C166: Mr Newman-Sanders arrived to teach Physics & Maths. | F166: 1969 | H166: 9 | I166: 1969 | Q166: Mr | R166: A. W. | S166: Newman-Sanders | V166: T | W166: started WHS | X166: Teacher | AA166: Maths/Physics | AD166: Caius Coll. Cambs - 1 year in industry - 7 years in RAF | AF166: His wife is French.
A167: 166 | B167: staffing | C167: Mr J. C. Morris arrived to teach history. | F167: 1969 | H167: 9 | I167: 1969 | Q167: Mr | R167: J. C. | S167: Morris | V167: T | W167: started WHS | X167: Teacher | AA167: History | AD167: St Edmund Hall, Oson - former pupil at Leighton Park School, where his English teacher was Neil Clayton.
A168: 167 | B168: staffing | C168: Mr. S. L. Croft arrived to teach English. | F168: 1969 | H168: 9 | I168: 1969 | K168: 7 | L168: 1970 | P168: 1 year | Q168: Mr | R168: S. L. | S168: Croft | V168: T | W168: started WHS | X168: Teacher | AA168: English | AB168: shooting/music/travel | AD168: Leeds Uni. & Keble, Oxon - taught in India & Pakistan
A169: 168 | B169: staffing | C169: Ben turner returned after sabbatical study year. | F169: 1969 | H169: 9 | I169: 1969 | Q169: Mr | R169: Ben R. | S169: Turner | W169: returned to WHS | X169: Teacher | AA169: Woodwork
A170: 169 | B170: staffing | C170: Paul Brun from Marseilles arrived as French Assistant. | F170: 1969 | H170: 9 | I170: 1969 | P170: 1 year | Q170: Mr | R170: Paul | S170: Brun | V170: FLA | W170: started WHS | X170: French Assistant
A171: 170 | B171: staffing | C171: Friedrich Schleudermann from Wuppertal arrived as German Assistant. | F171: 1969 | H171: 9 | I171: 1969 | P171: 1 year | Q171: Mr | R171: Friedrich | S171: Schleudermann | V171: GLA | W171: started WHS | X171: German Assistant
A172: 171 | B172: staffing | C172: Judy Green returned from year in Vienna. | F172: 1969 | H172: 9 | I172: 1969 | Q172: Miss | R172: Judy | S172: Green | V172: DS | W172: returned
A173: 172 | B173: staffing | C173: Miss A. Ferrier started as Assistant Bursar. | F173: 1969 | H173: 9 | I173: 1969 | Q173: Miss | R173: A. | S173: Ferrier | V173: ADB | W173: started WHS | X173: Assistant Bursar
A174: 173 | B174: staffing | C174: Miss C. Lee started as Assistant Sister. | F174: 1969 | H174: 9 | I174: 1969 | Q174: Miss | R174: C. | S174: Lee | V174: AS | W174: started WHS | X174: Assistant Sister
A175: 174 | B175: staffing | C175: Mr B Woolford started as Lab. Assistant. | F175: 1969 | H175: 9 | I175: 1969 | Q175: Mr | R175: B | S175: Woolford | V175: LAB | W175: started WHS | X175: Lab. Assistant
A176: 175 | B176: honour | C176: Philip A. Laughton appointed Head Boy & Head of Hansons. | D176: 1 | F176: 1969 | H176: 9 | I176: 1969 | Q176: Mr | R176: Philip A. | S176: Laughton | V176: B | W176: appointed | X176: Head Boy
A177: 176 | B177: death | C177: Terry Cleverley (61-67)reported killed in road RTA in Spain | F177: 1969 | H177: 7 | I177: 1969 | Q177: Mr | R177: Terry | S177: Cleverley | V177: OB | W177: died
A178: 177 | B178: death | C178: Mrs Doreen Thurston | F178: 1969 | I178: 1969 | V178: DS | W178: died
A179: 178 | B179: death | C179: Mr Leo Roberts | F179: 1969 | I179: 1969 | V179: DS | W179: died
A180: 179 | B180: death | C180: Miss Edith Rose | F180: 1969 | I180: 1969 | R180: Edith | S180: Rose | V180: DS | W180: died
A181: 180 | B181: honour | C181: Chris R. Curran appointed Head of Berners. | D181: 1 | F181: 1969 | H181: 9 | I181: 1969 | R181: Chris | S181: Curran | T181: Berners | V181: B | W181: appointed | X181: Head of House
A182: 181 | B182: honour | C182: Guy R. Austin appointed Head of Corners. | D182: 1 | F182: 1969 | H182: 9 | I182: 1969 | R182: Guy | S182: Austin | T182: Corners | V182: B | W182: appointed | X182: Head of House
A183: 182 | B183: honour | C183: Ceri. Ll Howell appointed Head of Halls. | D183: 1 | F183: 1969 | H183: 9 | I183: 1969 | R183: Ceri | S183: Howell | T183: Halls | V183: B | W183: appointed | X183: Head of House
A184: 183 | B184: honour | C184: Graeme Alexander appointed Head of Johnstons. | D184: 1 | F184: 1969 | H184: 9 | I184: 1969 | R184: Graeme | S184: Alexander | T184: Johnstons | V184: B | W184: appointed | X184: Head of House
A185: 184 | B185: honour | C185: Ian Turner appointed Head of Orwell. | D185: 1 | F185: 1969 | H185: 9 | I185: 1969 | R185: Ian | S185: Turner | T185: Orwell | V185: B | W185: appointed | X185: Head of House
A186: 185 | B186: honour | C186: Philip A. Laughton appointed Head of Hansons | D186: 1 | F186: 1969 | H186: 9 | I186: 1969 | M186: 6869 | R186: Philip | S186: Laughton | T186: Hansons | V186: B | W186: appointed | X186: Head of House
A187: 186 | B187: honour | C187: James Cottrell appointed Cricket Captain. | D187: 1 | F187: 1969 | H187: 9 | I187: 1969 | M187: 6869 | R187: James | S187: Cotrell | V187: B | W187: appointed | X187: Cricket Captain | Y187: Mike Radford
A188: 187 | B188: honour | C188: Ian Turner appointed Rugby Captain. | D188: 1 | F188: 1969 | H188: 9 | I188: 1969 | M188: 6869 | R188: Ian | S188: Turner | V188: B | W188: appointed | X188: Rugby Captain | Y188: James Cottrell
A189: 188 | B189: honour | C189: David Gush appointed Sailing Captain. | D189: 1 | F189: 1969 | H189: 9 | I189: 1969 | O189: 6869 | R189: David | S189: Gush | V189: B | W189: appointed | X189: Sailing Captain
A190: 189 | B190: premises | C190: 1,000 new books added to the Library in 1968-1969 - Greg. Moon was Chief Librariyn | F190: 1969 | H190: 9 | I190: 1969 | M190: 6869
A191: 190 | B191: event | C191: Judy Green wrote about her year in Vienna. | E191: GO | F191: 1969 | I191: 1969 | M191: 6869
A192: 191 | B192: sport | C192: Three boys including S. Davis, Peter Timms & Dave Waight played Carmarthen in Wales accompanied by Colin Hawes. | F192: 1969 | I192: 1969 | M192: 6869
A193: 192 | B193: travel | C193: Snowdon mountaineering trip: Ian Turner, Jim Wild, Paul Mattey and Derek Thornbery | F193: 1969 | H193: 4 | I193: 1969 | M193: 6869
A194: 193 | B194: activities | C194: report on the Stowe Exchange by S.L. Parperis | F194: 1969 | I194: 1969 | M194: 6869
A195: 194 | B195: staff | C195: Mr Mrs Poole left Hansons as Housemaster & Matron | F195: 1969 | H195: 4 | I195: 1969 | M195: 6869
A196: 195 | B196: staff | C196: Mr Poole took over as Housemaster of Halls | F196: 1969 | H196: 9 | I196: 1969 | M196: 6869
A197: 196 | B197: honour | C197: Henry Gibbons left Berners to take up place at Cambridge. | D197: 1 | F197: 1969 | H197: 7 | I197: 1969 | M197: 6869
A198: 197 | B198: staff | C198: Mr Mrs Hutchinson took over as Housemaster & Matron of Hansons. | F198: 1969 | H198: 9 | I198: 1969 | M198: 6869 | V198: HM | W198: started | Y198: Mr Mrs Poole
A199: 198 | B199: sport | C199: The fencing Club scored 12 wins and no defeats against schools. | F199: 1969 | O199: 6869
A200: 199 | B200: M&D | C200: "The Royal Hunt of the Sun" was performed | E200: GO | F200: 1969 | I200: 1969 | M200: 6869
... 49 more rows
